Body,Body Name,Date,Transaction Number,Invoice Number,Amount,Supplier Name,Supplier ID ,VAT Registration Number ,Expense Area,Expense Type,Expense Code,Purchase Order
http://statistics.data.gov.uk/id/local-authority/29UP,Tonbridge & Malling Borough Council,2/1/2024,0041036263/3,41036263, 266.01,National Westminster Bank Plc,00894500,,Temporary Accommodation,Homelessness,C01AA000044051,
http://statistics.data.gov.uk/id/local-authority/29UP,Tonbridge & Malling Borough Council,2/1/2024,0041036263/4,41036263, 73.08,National Westminster Bank Plc,00894500,,Temporary Accommodation,Homelessness,C01AA000044051,
http://statistics.data.gov.uk/id/local-authority/29UP,Tonbridge & Malling Borough Council,2/1/2024,0041036263/5,41036263, 5.19,National Westminster Bank Plc,00894500,,Software Hire & Support,Information Technology,D27KD000044059,
http://statistics.data.gov.uk/id/local-authority/29UP,Tonbridge & Malling Borough Council,2/1/2024,0041036263/6,41036263, 10.00,National Westminster Bank Plc,00894500,,Software Hire & Support,Information Technology,D27KD000044059,
http://statistics.data.gov.uk/id/local-authority/29UP,Tonbridge & Malling Borough Council,2/1/2024,0041036263/7,41036263, 200.00,National Westminster Bank Plc,00894500,,Software Hire & Support,Information Technology,D27KD000044059,
http://statistics.data.gov.uk/id/local-authority/29UP,Tonbridge & Malling Borough Council,2/1/2024,0041036263/8,41036263, 4.00,National Westminster Bank Plc,00894500,,Delivery Expenses,Information Technology,D27KD000044069,
http://statistics.data.gov.uk/id/local-authority/29UP,Tonbridge & Malling Borough Council,2/1/2024,0041036263/9,41036263, 79.00,National Westminster Bank Plc,00894500,,Information & Publicity,Information & Publicity,D32MJ000044076,
http://statistics.data.gov.uk/id/local-authority/29UP,Tonbridge & Malling Borough Council,2/2/2024,0041036271/1,41036271, 15.40,HSBC Bank Plc,01740800,,Bank Charges,Banking Arrangements,D43QK000044222,
http://statistics.data.gov.uk/id/local-authority/29UP,Tonbridge & Malling Borough Council,2/7/2024,0011047621/1,11047621, 428.00,BML Building Services Ltd,01505000,124905523,BRREP Response - General,Larkfield Leisure Centre,M15HDP50001997,110070701
http://statistics.data.gov.uk/id/local-authority/29UP,Tonbridge & Malling Borough Council,2/7/2024,0011047622/1,11047622, 387.00,BML Building Services Ltd,01505000,124905523,BRREP Response - General,Larkfield Leisure Centre,M15HDP50001997,110070701
http://statistics.data.gov.uk/id/local-authority/29UP,Tonbridge & Malling Borough Council,2/7/2024,0011047623/1,11047623, 541.85,Antalis,01556800,317187204,Purchases - Paper,Printing,D22GA000040102,
http://statistics.data.gov.uk/id/local-authority/29UP,Tonbridge & Malling Borough Council,2/7/2024,0011047624/1,11047624, 2076.39,Royal Mail,00086200,243170002,Purchases,Mailsort Stock Account,K37BR000001002,
http://statistics.data.gov.uk/id/local-authority/29UP,Tonbridge & Malling Borough Council,2/7/2024,0011047624/2,11047624, 10.15,Royal Mail,00086200,243170002,Purchases,Mailsort Stock Account,K37BR000001002,
http://statistics.data.gov.uk/id/local-authority/29UP,Tonbridge & Malling Borough Council,2/7/2024,0011047624/3,11047624, 4.20,Royal Mail,00086200,243170002,Purchases,Mailsort Stock Account,K37BR000001002,
http://statistics.data.gov.uk/id/local-authority/29UP,Tonbridge & Malling Borough Council,2/7/2024,0011047625/1,11047625, 33.60,Royal Mail,00086200,243170002,Postages - Business Reply,Electoral Registration,D31MF000045003,
http://statistics.data.gov.uk/id/local-authority/29UP,Tonbridge & Malling Borough Council,2/7/2024,0011047625/2,11047625, 37.80,Royal Mail,00086200,243170002,Purchases,Business Reply Stock Account,K14AT000001002,
http://statistics.data.gov.uk/id/local-authority/29UP,Tonbridge & Malling Borough Council,2/7/2024,0011047626/1,11047626, 21.66,Amazon EU SARL,01738400,,Purchases,Legal Sals&Overheads,D01ARDR0040101,410032585
http://statistics.data.gov.uk/id/local-authority/29UP,Tonbridge & Malling Borough Council,2/7/2024,0011047627/1,11047627, 934.12,KCS - KCC,00054200,204269191,Estate Management Charge,Land Review,D40PS000020400,
http://statistics.data.gov.uk/id/local-authority/29UP,Tonbridge & Malling Borough Council,2/7/2024,0011047628/1,11047628, 463.65,KCS - KCC,00054200,204269191,Estate Management Charge,Land Review,D40PS000020400,
http://statistics.data.gov.uk/id/local-authority/29UP,Tonbridge & Malling Borough Council,2/7/2024,0011047629/1,11047629, 390.00,G C Industrial Heating Services,00578100,292124905,BRREP Response - General,Gibson Building East,M15KGP50001997,110070691
http://statistics.data.gov.uk/id/local-authority/29UP,Tonbridge & Malling Borough Council,2/7/2024,0011047630/1,11047630, 6.00,Thomson Snell & Passmore,00101700,210327030,Legal Fees,Legal Sals&Overheads,D01ARDR0044002,
http://statistics.data.gov.uk/id/local-authority/29UP,Tonbridge & Malling Borough Council,2/7/2024,0011047631/1,11047631, 10959.77,KCS - KCC,00054200,204269191,Electricity,Buildings,D21FEDD5021002,
http://statistics.data.gov.uk/id/local-authority/29UP,Tonbridge & Malling Borough Council,2/7/2024,0011047632/1,11047632, 3435.40,Swasam Ltd,01931700,,Contract Payments,UK Shared Prosperity Fund,P06FNFN4009904,
http://statistics.data.gov.uk/id/local-authority/29UP,Tonbridge & Malling Borough Council,2/7/2024,0011047633/1,11047633, 2000.00,Swasam Ltd,01931700,,Economic Development & Regen,Eco Dev & Reg Gen Bus Support,D52TD000047027,
http://statistics.data.gov.uk/id/local-authority/29UP,Tonbridge & Malling Borough Council,2/7/2024,0011047634/1,11047634, 380.00,G C Industrial Heating Services,00578100,292124905,BRREP Servicing - Sadia Tea,Gibson Building East,M15KGP20001932,110070741
http://statistics.data.gov.uk/id/local-authority/29UP,Tonbridge & Malling Borough Council,2/7/2024,0011047635/1,11047635, 420.00,G C Industrial Heating Services,00578100,292124905,BRREP Response - General,Gibson Building West,M15KBP50001997,110070741
http://statistics.data.gov.uk/id/local-authority/29UP,Tonbridge & Malling Borough Council,2/7/2024,0011047636/1,11047636, 290.00,G C Industrial Heating Services,00578100,292124905,BRREP Servicing - Sadia Tea,Gibson Building West,M15KBP20001932,110070741
http://statistics.data.gov.uk/id/local-authority/29UP,Tonbridge & Malling Borough Council,2/7/2024,0011047637/1,11047637, 1400.00,The Oyster Partnership,01196400,832961025,Temporary Staff,Admin & Prop Sals&Overheads,D01AADA1111300,
http://statistics.data.gov.uk/id/local-authority/29UP,Tonbridge & Malling Borough Council,2/7/2024,0011047638/1,11047638, 24.50,Scottish Water Business Stream Ltd,01641100,,Estate Management Charge,Land Review,D40PS000020400,
http://statistics.data.gov.uk/id/local-authority/29UP,Tonbridge & Malling Borough Council,2/7/2024,0011047639/1,11047639, 320.00,G C Industrial Heating Services,00578100,292124905,BRREP Response - General,PC - General,M15JAP50001997,
http://statistics.data.gov.uk/id/local-authority/29UP,Tonbridge & Malling Borough Council,2/7/2024,0011047640/1,11047640, 10.98,Royal Mail,00086200,243170002,Postages - Business Reply,Electoral Registration,D31MF000045003,
http://statistics.data.gov.uk/id/local-authority/29UP,Tonbridge & Malling Borough Council,2/7/2024,0011047641/1,11047641, 409.00,Automated Limited,00007000,,BRREP Serv Internal Lighting,Angel Centre,M15HAP20001957,110070721
http://statistics.data.gov.uk/id/local-authority/29UP,Tonbridge & Malling Borough Council,2/7/2024,0011047642/1,11047642, 946.00,Automated Limited,00007000,,BRREP Serv Internal Lighting,Angel Centre,M15HAP20001957,110070720
http://statistics.data.gov.uk/id/local-authority/29UP,Tonbridge & Malling Borough Council,2/7/2024,0011047643/1,11047643, 150.00,Automated Limited,00007000,,BRREP Serv Internal Lighting,Angel Centre,M15HAP20001957,110070718
http://statistics.data.gov.uk/id/local-authority/29UP,Tonbridge & Malling Borough Council,2/7/2024,0011047644/1,11047644, 320.00,Automated Limited,00007000,,BRREP Response - General,Tonbridge Swimming Pool,M15HBP50001997,110070719
http://statistics.data.gov.uk/id/local-authority/29UP,Tonbridge & Malling Borough Council,2/7/2024,0011047645/1,11047645, 305.00,Automated Limited,00007000,,BRREP Plant renewals,Tonbridge Swimming Pool,M15HBP20001909,
http://statistics.data.gov.uk/id/local-authority/29UP,Tonbridge & Malling Borough Council,2/7/2024,0011047646/1,11047646, 140.00,Automated Limited,00007000,,BRREP Response - General,Tonbridge Farm Pavillion,M15HGP50001997,110070717
http://statistics.data.gov.uk/id/local-authority/29UP,Tonbridge & Malling Borough Council,2/7/2024,0011047647/1,11047647, 201.00,Automated Limited,00007000,,BRREP Serv Internal Lighting,Leis Man Poult Wood Golf Centr,M15HEP20001957,110070716
http://statistics.data.gov.uk/id/local-authority/29UP,Tonbridge & Malling Borough Council,2/7/2024,0011047648/1,11047648, 760.33,Kohler Mira Limited,00902600,779588443,BRREP Servicing - pool plant,Tonbridge Swimming Pool,M15HBP20001910,110070715
http://statistics.data.gov.uk/id/local-authority/29UP,Tonbridge & Malling Borough Council,2/7/2024,0011047649/1,11047649, 90.00,Guardian Security & Fire Ltd,01899300,,BRREP Servicing - FireAlarmSys,Gibson Building East,M15KGP20001937,
http://statistics.data.gov.uk/id/local-authority/29UP,Tonbridge & Malling Borough Council,2/7/2024,0011047650/1,11047650, 112.00,East Sussex Fire Ltd,01843100,,Repairs & Mtce to Buildings,Homelessness,C01AATNHS20101,110070238
http://statistics.data.gov.uk/id/local-authority/29UP,Tonbridge & Malling Borough Council,2/7/2024,0011047651/1,11047651, 57.99,KCS Education/CSG Global Education Ltd,01897200,408845925,Cleaning & Domestic Supplies,Cleaning & Security,D21FD000026001,110070712
http://statistics.data.gov.uk/id/local-authority/29UP,Tonbridge & Malling Borough Council,2/7/2024,0011047651/2,11047651, 70.80,KCS Education/CSG Global Education Ltd,01897200,408845925,Cleaning & Domestic Supplies,Cleaning & Security,D21FD000026001,110070712
http://statistics.data.gov.uk/id/local-authority/29UP,Tonbridge & Malling Borough Council,2/7/2024,0011047651/3,11047651, 83.40,KCS Education/CSG Global Education Ltd,01897200,408845925,Cleaning & Domestic Supplies,Cleaning & Security,D21FD000026001,110070712
http://statistics.data.gov.uk/id/local-authority/29UP,Tonbridge & Malling Borough Council,2/7/2024,0011047651/4,11047651, 70.80,KCS Education/CSG Global Education Ltd,01897200,408845925,Cleaning & Domestic Supplies,Cleaning & Security,D21FD000026001,110070712
http://statistics.data.gov.uk/id/local-authority/29UP,Tonbridge & Malling Borough Council,2/7/2024,0011047652/1,11047652, 398.96,Scottish Water Business Stream Ltd,01641100,,Sewerage Charges,Buildings,D21FEDD1024003,
http://statistics.data.gov.uk/id/local-authority/29UP,Tonbridge & Malling Borough Council,2/7/2024,0011047654/1,11047654, 5000.00,Mace Limited,01837400,,Economic Development & Regen,Eco Dev & Reg Gen Bus Support,D52TD000047027,
http://statistics.data.gov.uk/id/local-authority/29UP,Tonbridge & Malling Borough Council,2/7/2024,0011047655/1,11047655, 348.86,Scottish Water Business Stream Ltd,01641100,,Sewerage Charges,Buildings,D21FEDD6024003,
http://statistics.data.gov.uk/id/local-authority/29UP,Tonbridge & Malling Borough Council,2/7/2024,0011047656/1,11047656, 96.51,Castle Water,01696500,,Estate Management Charge,Land Review,D40PS000020400,
http://statistics.data.gov.uk/id/local-authority/29UP,Tonbridge & Malling Borough Council,2/7/2024,0011047657/1,11047657, 49.38,Castle Water,01696500,,Estate Management Charge,Land Review,D40PS000020400,
http://statistics.data.gov.uk/id/local-authority/29UP,Tonbridge & Malling Borough Council,2/7/2024,0011047658/1,11047658, 110.00,The Mayor's Charity Account,00947300,,Hospitality,Mayoral & Other Member Support,D29LX000048003,
http://statistics.data.gov.uk/id/local-authority/29UP,Tonbridge & Malling Borough Council,2/7/2024,0011047659/1,11047659, 60.90,Biffa Waste Services Ltd,01284500,,Trade Refuse Charges,Cleaning & Security,D21FD000044008,
http://statistics.data.gov.uk/id/local-authority/29UP,Tonbridge & Malling Borough Council,2/7/2024,0011047660/1,11047660, 60.90,Biffa Waste Services Ltd,01284500,,Trade Refuse Charges,Cleaning & Security,D21FD000044008,
http://statistics.data.gov.uk/id/local-authority/29UP,Tonbridge & Malling Borough Council,2/7/2024,0011047661/1,11047661, 456.00,ATS Heritage,01847400,,Leasing Charges,Tonbridge Castle Gatehouse,B40TG000044038,110070251
http://statistics.data.gov.uk/id/local-authority/29UP,Tonbridge & Malling Borough Council,2/7/2024,0011047662/1,11047662, 1562.51,Royal Mail,00086200,243170002,Purchases,Mailsort Stock Account,K37BR000001002,
http://statistics.data.gov.uk/id/local-authority/29UP,Tonbridge & Malling Borough Council,2/7/2024,0011047662/2,11047662, 6.30,Royal Mail,00086200,243170002,Purchases,Mailsort Stock Account,K37BR000001002,
http://statistics.data.gov.uk/id/local-authority/29UP,Tonbridge & Malling Borough Council,2/7/2024,0011047662/3,11047662, 6.14,Royal Mail,00086200,243170002,Purchases,Mailsort Stock Account,K37BR000001002,
http://statistics.data.gov.uk/id/local-authority/29UP,Tonbridge & Malling Borough Council,2/7/2024,0011047663/1,11047663, 39.20,Royal Mail,00086200,243170002,Postages - Business Reply,Electoral Registration,D31MF000045003,
http://statistics.data.gov.uk/id/local-authority/29UP,Tonbridge & Malling Borough Council,2/7/2024,0011047663/2,11047663, 26.60,Royal Mail,00086200,243170002,Purchases,Business Reply Stock Account,K14AT000001002,
http://statistics.data.gov.uk/id/local-authority/29UP,Tonbridge & Malling Borough Council,2/7/2024,0011047663/3,11047663, 1.96,Royal Mail,00086200,243170002,Purchases,Business Reply Stock Account,K14AT000001002,
http://statistics.data.gov.uk/id/local-authority/29UP,Tonbridge & Malling Borough Council,2/7/2024,0011047664/1,11047664, 135.60,Coloursped Services Ltd,01806600,,Purchases - Paper,Printing,D22GA000040102,
http://statistics.data.gov.uk/id/local-authority/29UP,Tonbridge & Malling Borough Council,2/7/2024,0011047665/1,11047665, 1600.00,The Oyster Partnership,01196400,832961025,Temporary Staff,Admin & Prop Sals&Overheads,D01AADA1111300,
http://statistics.data.gov.uk/id/local-authority/29UP,Tonbridge & Malling Borough Council,2/7/2024,0011047666/1,11047666, 4750.00,Baker Developments South East Ltd,01878900,446348183,BRREP General Maintenance,Leis Man Poult Wood Golf Centr,M15HEP10001900,110070744
http://statistics.data.gov.uk/id/local-authority/29UP,Tonbridge & Malling Borough Council,2/7/2024,0011047667/1,11047667, 394.74,Chubb Fire & Security Ltd,00115400,174605362,BRREP Servicing-IntruderAlarm,Larkfield Leisure Centre,M15HDP20001939,
http://statistics.data.gov.uk/id/local-authority/29UP,Tonbridge & Malling Borough Council,2/7/2024,0011047668/1,11047668, 65.00,Willow Pumps Ltd,00114100,,BRREP Servicing - Pumping Stn,Tonbridge Swimming Pool,M15HBP20001931,110070568
http://statistics.data.gov.uk/id/local-authority/29UP,Tonbridge & Malling Borough Council,2/7/2024,0011047668/2,11047668, 125.00,Willow Pumps Ltd,00114100,,BRREP Servicing - Pumping Stn,Ton Sportsgrnd Bldgs / Toilets,M15HCP20001931,110070568
http://statistics.data.gov.uk/id/local-authority/29UP,Tonbridge & Malling Borough Council,2/7/2024,0011047668/3,11047668, 125.00,Willow Pumps Ltd,00114100,,BRREP Servicing - Pumping Stn,Vale Rise Depot,M15LCP20001931,110070568
http://statistics.data.gov.uk/id/local-authority/29UP,Tonbridge & Malling Borough Council,2/7/2024,0011047669/1,11047669, 4267.00,Broadwater Technologies,01534500,,BRREP Plant renewals,Larkfield Leisure Centre,M15HDP20001909,110070662
http://statistics.data.gov.uk/id/local-authority/29UP,Tonbridge & Malling Borough Council,2/7/2024,0011047670/1,11047670, 475.00,BML Building Services Ltd,01505000,124905523,BRREP Response - General,Tonbridge Castle / CAB,M15KFP50001997,110070696
http://statistics.data.gov.uk/id/local-authority/29UP,Tonbridge & Malling Borough Council,2/7/2024,0011047671/1,11047671, 350.00,BML Building Services Ltd,01505000,124905523,BRREP Drain and gully cleaning,PC - General,M15JAP20001975,
http://statistics.data.gov.uk/id/local-authority/29UP,Tonbridge & Malling Borough Council,2/7/2024,0011047672/1,11047672, 160.00,NKM Fire Protection Ltd,01784600,,BRREP Servicing - FireAlarmSys,Tonbridge Swimming Pool,M15HBP20001937,110070361
http://statistics.data.gov.uk/id/local-authority/29UP,Tonbridge & Malling Borough Council,2/7/2024,0011047673/1,11047673, 100.00,BML Building Services Ltd,01505000,124905523,BRREP Response - General,PC - General,M15JAP50001997,
http://statistics.data.gov.uk/id/local-authority/29UP,Tonbridge & Malling Borough Council,2/7/2024,0011047674/1,11047674, 325.00,Willow Pumps Ltd,00114100,,BRREP Servicing - Pumping Stn,Ton Sportsgrnd Bldgs / Toilets,M15HCP20001931,110070693
http://statistics.data.gov.uk/id/local-authority/29UP,Tonbridge & Malling Borough Council,2/7/2024,0011047675/1,11047675, 2450.00,Baker Developments South East Ltd,01878900,446348183,BRREP Sauna seating removal,Larkfield Leisure Centre,M15HDP20001916,110070748
http://statistics.data.gov.uk/id/local-authority/29UP,Tonbridge & Malling Borough Council,2/7/2024,0011047676/1,11047676, 825.00,H20 Servicing Limited,00888800,808041553,BRREP Pool tile repairs,Tonbridge Swimming Pool,M15HBP20001906,110070704
http://statistics.data.gov.uk/id/local-authority/29UP,Tonbridge & Malling Borough Council,2/7/2024,0011047677/1,11047677, 116.60,NKM Fire Protection Ltd,01784600,,BRREP Servicing - FireAlarmSys,Tonbridge Swimming Pool,M15HBP20001937,110070319
http://statistics.data.gov.uk/id/local-authority/29UP,Tonbridge & Malling Borough Council,2/7/2024,0011047678/1,11047678, 285.09,Glaze-Tech Services Ltd,00779500,,BRREP Response - General,Leybourne Lakes Country Park,M15HLP50001997,110070703
http://statistics.data.gov.uk/id/local-authority/29UP,Tonbridge & Malling Borough Council,2/7/2024,0011047679/1,11047679, 470.00,PV Environmental Surveys,00987200,,BRREP Serv Internal Lighting,Leis Man Poult Wood Golf Centr,M15HEP20001957,110070733
http://statistics.data.gov.uk/id/local-authority/29UP,Tonbridge & Malling Borough Council,2/7/2024,0011047680/1,11047680, 325.00,Baker Developments South East Ltd,01878900,446348183,BRREP Window/door repairs,Larkfield Leisure Centre,M15HDP20001919,110070730
http://statistics.data.gov.uk/id/local-authority/29UP,Tonbridge & Malling Borough Council,2/7/2024,0011047681/1,11047681, 890.00,Baker Developments South East Ltd,01878900,446348183,BRREP Response - General,Leis Man Poult Wood Golf Centr,M15HEP50001997,110070732
http://statistics.data.gov.uk/id/local-authority/29UP,Tonbridge & Malling Borough Council,2/7/2024,0011047682/1,11047682, 350.00,H20 Servicing Limited,00888800,808041553,BRREP Plant renewals,Larkfield Leisure Centre,M15HDP20001909,110070702
http://statistics.data.gov.uk/id/local-authority/29UP,Tonbridge & Malling Borough Council,2/7/2024,0011047683/1,11047683, 976.05,TMS Protection Ltd,01744300,,Office Security,Ton Castle Council Chamber,D21FC000044047,
http://statistics.data.gov.uk/id/local-authority/29UP,Tonbridge & Malling Borough Council,2/7/2024,0011047683/2,11047683, 3296.70,TMS Protection Ltd,01744300,,Office Security,Tonbridge Gateway,D23TG000044047,
http://statistics.data.gov.uk/id/local-authority/29UP,Tonbridge & Malling Borough Council,2/7/2024,0011047684/1,11047684, 84.00,Tonbridge Historical Society,00458000,,Purchases,TIC Stock Account,K18AX000001002,
http://statistics.data.gov.uk/id/local-authority/29UP,Tonbridge & Malling Borough Council,2/7/2024,0011047684/2,11047684, 120.00,Tonbridge Historical Society,00458000,,Purchases,TIC Stock Account,K18AX000001002,
http://statistics.data.gov.uk/id/local-authority/29UP,Tonbridge & Malling Borough Council,2/7/2024,0011047685/1,11047685, 34438.00,Barr & Wray Ltd,00008100,680645127,BRREP General Maintenance,Tonbridge Swimming Pool,M15HBP10001900,110070129
http://statistics.data.gov.uk/id/local-authority/29UP,Tonbridge & Malling Borough Council,2/7/2024,0012008971/1,12008971, 79.90,CCS Media Ltd,00018000,,Purchases,Information Technology,D27KD000040101,410032582
http://statistics.data.gov.uk/id/local-authority/29UP,Tonbridge & Malling Borough Council,2/7/2024,0012008971/2,12008971, 2.00,CCS Media Ltd,00018000,,Delivery Expenses,Information Technology,D27KD000044069,410032582
http://statistics.data.gov.uk/id/local-authority/29UP,Tonbridge & Malling Borough Council,2/7/2024,0012008972/1,12008972, 145.00,CCS Media Ltd,00018000,,Purchases,Information Technology,D27KD000040101,410032582
http://statistics.data.gov.uk/id/local-authority/29UP,Tonbridge & Malling Borough Council,2/7/2024,0012008972/2,12008972, 145.00,CCS Media Ltd,00018000,,Purchases,Information Technology,D27KD000040101,410032582
http://statistics.data.gov.uk/id/local-authority/29UP,Tonbridge & Malling Borough Council,2/7/2024,0012008973/1,12008973, 15.55,Esendex Limited,01008900,,Leased Lines & Modems,Information Technology,D27KD000045011,
http://statistics.data.gov.uk/id/local-authority/29UP,Tonbridge & Malling Borough Council,2/7/2024,0012008974/1,12008974, 88.63,Softcat,01615300,,Purchases,Information Technology,D27KD000040101,410032542
http://statistics.data.gov.uk/id/local-authority/29UP,Tonbridge & Malling Borough Council,2/7/2024,0012008974/2,12008974, 7.50,Softcat,01615300,,Delivery Expenses,Information Technology,D27KD000044069,410032542
http://statistics.data.gov.uk/id/local-authority/29UP,Tonbridge & Malling Borough Council,2/7/2024,0012008975/1,12008975, 38.37,Bytes Software Services,01676900,823818226,Software Hire & Support,Information Technology,D27KD000044059,410032584
http://statistics.data.gov.uk/id/local-authority/29UP,Tonbridge & Malling Borough Council,2/7/2024,0012008976/1,12008976, 2061.24,NTT Cloud Communications UK Ltd,01794600,,Software Hire & Support,Information Technology,D27KD000044059,110069968
http://statistics.data.gov.uk/id/local-authority/29UP,Tonbridge & Malling Borough Council,2/7/2024,0012008977/1,12008977, 7.40,Daisy Communications,01068100,,Telephones - Rentals,General Admin Telephones,D24GT000045005,
http://statistics.data.gov.uk/id/local-authority/29UP,Tonbridge & Malling Borough Council,2/7/2024,0012008977/2,12008977, 285.76,Daisy Communications,01068100,,Telephones - Call Costs,General Admin Telephones,D24GT000045006,
http://statistics.data.gov.uk/id/local-authority/29UP,Tonbridge & Malling Borough Council,2/7/2024,0012008977/3,12008977, 95.92,Daisy Communications,01068100,,Leased Lines & Modems,Information Technology,D27KD000045011,
http://statistics.data.gov.uk/id/local-authority/29UP,Tonbridge & Malling Borough Council,2/7/2024,0012008977/4,12008977, 74.46,Daisy Communications,01068100,,Maintenance - General,Security Services Management,E09GA000040135,
http://statistics.data.gov.uk/id/local-authority/29UP,Tonbridge & Malling Borough Council,2/7/2024,0012008978/1,12008978, 1730.26,NTT Cloud Communications UK Ltd,01794600,,Software Hire & Support,Information Technology,D27KD000044059,
http://statistics.data.gov.uk/id/local-authority/29UP,Tonbridge & Malling Borough Council,2/7/2024,0012008979/1,12008979, 119.00,Get It Repaired,01631300,287357752,Maintenance - Micros,Information Technology,D27KD000040140,410032587
http://statistics.data.gov.uk/id/local-authority/29UP,Tonbridge & Malling Borough Council,2/7/2024,0012008980/1,12008980, 82.50,CCS Media Ltd,00018000,,Purchases,Information Technology,D27KD000040101,410032588
http://statistics.data.gov.uk/id/local-authority/29UP,Tonbridge & Malling Borough Council,2/7/2024,0021039129/1,21039129, 220.00,Mr A Nicholl,00253500,,Casual Users,Tonbridge Sports Association,B02AH000034003,
http://statistics.data.gov.uk/id/local-authority/29UP,Tonbridge & Malling Borough Council,2/7/2024,0021039129/2,21039129, 30.00,Mr A Nicholl,00253500,,Stationery,Tonbridge Sports Association,B02AH000043003,
http://statistics.data.gov.uk/id/local-authority/29UP,Tonbridge & Malling Borough Council,2/7/2024,0021039129/3,21039129, 15.00,Mr A Nicholl,00253500,,Telephones - General,Tonbridge Sports Association,B02AH000045010,
http://statistics.data.gov.uk/id/local-authority/29UP,Tonbridge & Malling Borough Council,2/7/2024,0021039130/1,21039130, 44129.33,Tonbridge & Malling Leisure Trust,01469100,,Employers Superannuation Costs,T&M Leisure Trust,B10DA000050107,
http://statistics.data.gov.uk/id/local-authority/29UP,Tonbridge & Malling Borough Council,2/7/2024,0021039131/1,21039131, 12144.00,Tonbridge & Malling Leisure Trust,01469100,,Maintenance - General,Tonbridge Swimming Pool,B06BA000040135,
http://statistics.data.gov.uk/id/local-authority/29UP,Tonbridge & Malling Borough Council,2/7/2024,0021039132/1,21039132, 24645.18,Tonbridge & Malling Leisure Trust,01469100,,Maintenance - General,Tonbridge Swimming Pool,B06BA000040135,
http://statistics.data.gov.uk/id/local-authority/29UP,Tonbridge & Malling Borough Council,2/7/2024,0021039133/3,21039133, 25839.00,Tonbridge & Malling Leisure Trust,01469100,,Gates / Security,Leybourne Lakes Country Park,B22LK000044017,
http://statistics.data.gov.uk/id/local-authority/29UP,Tonbridge & Malling Borough Council,2/7/2024,0021039134/1,21039134, 53.75,REDACTED PERSONAL DATA,01714400,,Purchases,Haysden Country Park,B22LC000040101,
http://statistics.data.gov.uk/id/local-authority/29UP,Tonbridge & Malling Borough Council,2/7/2024,0021039135/1,21039135, 140.00,Mr Mark Williams,01184500,,Marketing,Events Development,B41TJZ99944215,210057532
http://statistics.data.gov.uk/id/local-authority/29UP,Tonbridge & Malling Borough Council,2/7/2024,0021039136/1,21039136, 180.00,Green Leaf Tree & Landscapes Limited,01860500,,Maintenance of Grounds,Countryside/Woodland Mgt,B22LG000020402,
http://statistics.data.gov.uk/id/local-authority/29UP,Tonbridge & Malling Borough Council,2/7/2024,0021039137/1,21039137, 686.00,Green Leaf Tree & Landscapes Limited,01860500,,Tree Planting Schemes,Countryside/Woodland Mgt,B22LH000020405,210057514
http://statistics.data.gov.uk/id/local-authority/29UP,Tonbridge & Malling Borough Council,2/7/2024,0021039138/1,21039138, 28.83,Scottish Water Business Stream Ltd,01641100,,Sewerage Charges,Cemetery,B26MP000024003,
http://statistics.data.gov.uk/id/local-authority/29UP,Tonbridge & Malling Borough Council,2/7/2024,0021039139/1,21039139, 4.74,B&Q/Screwfix Direct(TradeUKAccount),00141300,,Maintenance of Grounds,Open Spaces & Amenity Areas,B22LE000020402,
http://statistics.data.gov.uk/id/local-authority/29UP,Tonbridge & Malling Borough Council,2/7/2024,0021039140/1,21039140, 793.10,Rumwoods Limited,00959000,,Tree Planting Schemes,Countryside/Woodland Mgt,B22LH000020405,210057515
http://statistics.data.gov.uk/id/local-authority/29UP,Tonbridge & Malling Borough Council,2/7/2024,0021039140/2,21039140, 42.50,Rumwoods Limited,00959000,,Tree Planting Schemes,Countryside/Woodland Mgt,B22LH000020405,210057515
http://statistics.data.gov.uk/id/local-authority/29UP,Tonbridge & Malling Borough Council,2/7/2024,0021039141/1,21039141, 121.00,KCC - L.A.S.E.R Commercial Services ,00184300,,Electricity,Open Spaces & Amenity Areas,B22LE000021002,
http://statistics.data.gov.uk/id/local-authority/29UP,Tonbridge & Malling Borough Council,2/7/2024,0021039142/1,21039142, 74.71,G.L. & R.G. Bourne,00737500,,Gates / Security,Haysden Country Park,B22LC000044017,210057185
http://statistics.data.gov.uk/id/local-authority/29UP,Tonbridge & Malling Borough Council,2/7/2024,0021039143/1,21039143, 544.98,G.L. & R.G. Bourne,00737500,,Gates / Security,Haysden Country Park,B22LC000044017,210057185
http://statistics.data.gov.uk/id/local-authority/29UP,Tonbridge & Malling Borough Council,2/7/2024,0021039144/1,21039144, 10.00,REDACTED PERSONAL DATA,01065500,,Purchases,Haysden Country Park,B22LC000040101,
http://statistics.data.gov.uk/id/local-authority/29UP,Tonbridge & Malling Borough Council,2/7/2024,0021039145/1,21039145, 58.95,JB Commercial Furniture,01333200,,Initial Furniture & Equipment,Capital Renewals Leisure,P05KGBC0209906,210057543
http://statistics.data.gov.uk/id/local-authority/29UP,Tonbridge & Malling Borough Council,2/7/2024,0021039145/2,21039145, 511.56,JB Commercial Furniture,01333200,,Initial Furniture & Equipment,Capital Renewals Leisure,P05KGBC0209906,210057543
http://statistics.data.gov.uk/id/local-authority/29UP,Tonbridge & Malling Borough Council,2/7/2024,0022028458/1,22028458, 7130.00,Premier Property Providers,01785400,,Temporary Accommodation,Homelessness,C01AA000044051,
http://statistics.data.gov.uk/id/local-authority/29UP,Tonbridge & Malling Borough Council,2/7/2024,0022028459/1,22028459, 1564.50,The Oyster Partnership,01196400,832961025,Temporary Staff,Planning Sals&Overheads,D01AJDJ0111300,
http://statistics.data.gov.uk/id/local-authority/29UP,Tonbridge & Malling Borough Council,2/7/2024,0022028460/1,22028460, 600.00,MYLA Health,01916000,,Healthy Living Initiatives,Public Health - Healthy Living,H40SYVH0048145,220003440
http://statistics.data.gov.uk/id/local-authority/29UP,Tonbridge & Malling Borough Council,2/7/2024,0022028461/1,22028461, 999.00,Mallard Consultancy Ltd,01528600,,Abatement Initiatives,Street Scene,H23SD000044006,220003445
http://statistics.data.gov.uk/id/local-authority/29UP,Tonbridge & Malling Borough Council,2/7/2024,0022028462/1,22028462, 3658.00,House to Home Lettings Ltd ,01647600,,Temporary Accommodation,Homelessness,C01AA000044051,
http://statistics.data.gov.uk/id/local-authority/29UP,Tonbridge & Malling Borough Council,2/7/2024,0022028463/1,22028463, 178.33,Glaze-Tech Services Ltd,00779500,,Repairs & Mtce to Buildings,Homelessness,C01AATNPR20101,220003421
http://statistics.data.gov.uk/id/local-authority/29UP,Tonbridge & Malling Borough Council,2/7/2024,0022028464/1,22028464, 2201.00,1st  Steps Housing Kent,01716100,,Temporary Accommodation,Homelessness,C01AA000044051,
http://statistics.data.gov.uk/id/local-authority/29UP,Tonbridge & Malling Borough Council,2/7/2024,0022028465/1,22028465, 594.00,Hill Professional Cleaning Services Ltd,01932100,429138683,Other Expenses,Housing Assistance,P03AD000009908,
http://statistics.data.gov.uk/id/local-authority/29UP,Tonbridge & Malling Borough Council,2/7/2024,0022028466/1,22028466, 1906.85,Specialist Hygiene Services,01466100,,Cleaning & Domestic Supplies,Haysden Country Park,B22LC000026001,
http://statistics.data.gov.uk/id/local-authority/29UP,Tonbridge & Malling Borough Council,2/7/2024,0022028466/2,22028466, 3682.15,Specialist Hygiene Services,01466100,,Contract Payments,Public Conveniences,H22SC000054001,
http://statistics.data.gov.uk/id/local-authority/29UP,Tonbridge & Malling Borough Council,2/7/2024,0022028467/1,22028467, 105.00,ReferAll Ltd,01817700,,Healthy Living Initiatives,Public Health - Healthy Living,H40SYVH0048145,220003446
http://statistics.data.gov.uk/id/local-authority/29UP,Tonbridge & Malling Borough Council,2/7/2024,0022028468/1,22028468, 1201.60,Green Recycling LTD,01563000,,Paper Recycling,Dry Recycling,H34SR000054024,
http://statistics.data.gov.uk/id/local-authority/29UP,Tonbridge & Malling Borough Council,2/7/2024,0022028469/1,22028469, 1089.00,G2 Recruitment Solutions,01786000,,Temporary Staff,Env Hlth & Hsg Sals&Overheads,D01AVDV0711300,
http://statistics.data.gov.uk/id/local-authority/29UP,Tonbridge & Malling Borough Council,2/7/2024,0022028470/1,22028470, 3600.00,Anna Whalen Consulting,01830800,,Professional Fees,Homelessness,C01AA000044001,
http://statistics.data.gov.uk/id/local-authority/29UP,Tonbridge & Malling Borough Council,2/7/2024,0022028471/3,22028471, 245.00,Countrystyle Group,00835900,781981681,Collection of Card,Dry Recycling,H34SR000054008,
http://statistics.data.gov.uk/id/local-authority/29UP,Tonbridge & Malling Borough Council,2/7/2024,0022028472/3,22028472, 1091.50,Ward Security LTD,01490000,,Dog Warden,Street Scene,H23SD000044100,
http://statistics.data.gov.uk/id/local-authority/29UP,Tonbridge & Malling Borough Council,2/7/2024,0022028473/1,22028473, 3150.00,G2 Recruitment Solutions,01786000,,Temporary Staff,Planning Sals&Overheads,D01AJDJ0011300,
http://statistics.data.gov.uk/id/local-authority/29UP,Tonbridge & Malling Borough Council,2/7/2024,0022028474/1,22028474, 4645.60,Countrystyle Group,00835900,781981681,Plastic Recycling,Dry Recycling,H34SR000054019,
http://statistics.data.gov.uk/id/local-authority/29UP,Tonbridge & Malling Borough Council,2/7/2024,0022028476/1,22028476, 657.35,Town & Country Housing Group,01385400,,Countywide DFG Project,Private Sector Housing Renewal,C03BD000044031,
http://statistics.data.gov.uk/id/local-authority/29UP,Tonbridge & Malling Borough Council,2/7/2024,0022028477/1,22028477, 9086.00,Smart Property Professionals,01815100,,Temporary Accommodation,Homelessness,C01AA000044051,
http://statistics.data.gov.uk/id/local-authority/29UP,Tonbridge & Malling Borough Council,2/7/2024,0022028478/1,22028478, 1519.00,Simply Rented Ltd ,01691400,,Temporary Accommodation,Homelessness,C01AA000044051,
http://statistics.data.gov.uk/id/local-authority/29UP,Tonbridge & Malling Borough Council,2/7/2024,0022028479/1,22028479, 3410.00,Simon Niblett Lettings,00072600,,Temporary Accommodation,Homelessness,C01AA000044051,
http://statistics.data.gov.uk/id/local-authority/29UP,Tonbridge & Malling Borough Council,2/7/2024,0022028480/1,22028480, 9882.00,Simon Niblett Lettings,00072600,,Temporary Accommodation,Homelessness,C01AA000044051,
http://statistics.data.gov.uk/id/local-authority/29UP,Tonbridge & Malling Borough Council,2/7/2024,0022028481/1,22028481, 406.45,Premier Inn,01217400,,Temporary Accommodation,Homelessness,C01AA000044051,
http://statistics.data.gov.uk/id/local-authority/29UP,Tonbridge & Malling Borough Council,2/7/2024,0022028482/1,22028482, 31836.50,Social & Community Care,01768400,,Temporary Accommodation,Homelessness,C01AA000044051,
http://statistics.data.gov.uk/id/local-authority/29UP,Tonbridge & Malling Borough Council,2/7/2024,0022028483/1,22028483, 2615.82,The Care Group-Housing & Care Trust,01699600,,Temporary Accommodation,Homelessness,C01AA000044051,
http://statistics.data.gov.uk/id/local-authority/29UP,Tonbridge & Malling Borough Council,2/7/2024,0022028484/1,22028484, 59368.00,Paramount Independent Property Suppliers,01595300,,Temporary Accommodation,Homelessness,C01AA000044051,
http://statistics.data.gov.uk/id/local-authority/29UP,Tonbridge & Malling Borough Council,2/7/2024,0022028485/1,22028485, 6719.00,Kent Accommodation Ltd,01722000,,Temporary Accommodation,Homelessness,C01AA000044051,
http://statistics.data.gov.uk/id/local-authority/29UP,Tonbridge & Malling Borough Council,2/7/2024,0022028486/1,22028486, 11198.00,Less Homeless Ltd,01489300,,Temporary Accommodation,Homelessness,C01AA000044051,
http://statistics.data.gov.uk/id/local-authority/29UP,Tonbridge & Malling Borough Council,2/7/2024,0022028487/1,22028487, 14367.00,SPA CAFFE LIMITED,00127100,,Temporary Accommodation,Homelessness,C01AA000044051,
http://statistics.data.gov.uk/id/local-authority/29UP,Tonbridge & Malling Borough Council,2/7/2024,0031020009/1,31020009, 1723.11,PSR Lighting & Signs Ltd,01265400,986561173,Initiatives,UK Shared Prosperity Fund,D52TH000048135,310043207
http://statistics.data.gov.uk/id/local-authority/29UP,Tonbridge & Malling Borough Council,2/7/2024,0031020009/2,31020009, 749.16,PSR Lighting & Signs Ltd,01265400,986561173,Initiatives,UK Shared Prosperity Fund,D52TH000048135,310043207
http://statistics.data.gov.uk/id/local-authority/29UP,Tonbridge & Malling Borough Council,2/7/2024,0031020010/1,31020010, 422.05,PSR Lighting & Signs Ltd,01265400,986561173,Initiatives,UK Shared Prosperity Fund,D52TH000048135,310043230
http://statistics.data.gov.uk/id/local-authority/29UP,Tonbridge & Malling Borough Council,2/7/2024,0031020010/2,31020010, 1148.74,PSR Lighting & Signs Ltd,01265400,986561173,Initiatives,UK Shared Prosperity Fund,D52TH000048135,310043230
http://statistics.data.gov.uk/id/local-authority/29UP,Tonbridge & Malling Borough Council,2/7/2024,0031020011/1,31020011, 3039.17,Tonbridge & Malling Leisure Trust,01469100,,Ticket Refunds - Lower Castle,Parking Off-Street,E10HAE01344199,
http://statistics.data.gov.uk/id/local-authority/29UP,Tonbridge & Malling Borough Council,2/7/2024,0031020013/1,31020013, 81.93,Shell U.K. Oil Products Limited,01673300,,"Petrol, Diesel & Oil",Parking Off-Street,E10HA000030106,
http://statistics.data.gov.uk/id/local-authority/29UP,Tonbridge & Malling Borough Council,2/7/2024,0031020013/2,31020013, 81.93,Shell U.K. Oil Products Limited,01673300,,"Petrol, Diesel & Oil",Parking Off-Street,E10HA000030106,
http://statistics.data.gov.uk/id/local-authority/29UP,Tonbridge & Malling Borough Council,2/7/2024,0031020014/1,31020014, 252.00,Securemedia LTD,01724000,,Stationery,Parking Off-Street,E10HA000043003,310043226
http://statistics.data.gov.uk/id/local-authority/29UP,Tonbridge & Malling Borough Council,2/7/2024,0031020014/2,31020014, 15.00,Securemedia LTD,01724000,,Stationery,Parking Off-Street,E10HA000043003,310043226
http://statistics.data.gov.uk/id/local-authority/29UP,Tonbridge & Malling Borough Council,2/7/2024,0031020014/3,31020014, 168.00,Securemedia LTD,01724000,,Stationery,Parking On-Street,E10HD000043003,310043226
http://statistics.data.gov.uk/id/local-authority/29UP,Tonbridge & Malling Borough Council,2/7/2024,0031020014/4,31020014, 10.00,Securemedia LTD,01724000,,Stationery,Parking On-Street,E10HD000043003,310043226
http://statistics.data.gov.uk/id/local-authority/29UP,Tonbridge & Malling Borough Council,2/7/2024,0031020015/1,31020015, 19.48,B&Q/Screwfix Direct(TradeUKAccount),00141300,,Purchases,Parking Off-Street,E10HA000040101,
http://statistics.data.gov.uk/id/local-authority/29UP,Tonbridge & Malling Borough Council,2/7/2024,0031020018/1,31020018, 1735.00,Marston,01485000,,Adjudication & Enforcement Ser,Parking Off-Street,E10HA000044230,
http://statistics.data.gov.uk/id/local-authority/29UP,Tonbridge & Malling Borough Council,2/7/2024,0031020019/1,31020019, 8.18,Imperial Civil Enforcement Solutions,00057200,,Purchases,Parking Off-Street,E10HA000040101,310043212
http://statistics.data.gov.uk/id/local-authority/29UP,Tonbridge & Malling Borough Council,2/7/2024,0031020019/2,31020019, 564.00,Imperial Civil Enforcement Solutions,00057200,,Purchases,Parking Off-Street,E10HA000040101,310043212
http://statistics.data.gov.uk/id/local-authority/29UP,Tonbridge & Malling Borough Council,2/7/2024,0031020019/3,31020019, 376.00,Imperial Civil Enforcement Solutions,00057200,,Purchases,Parking On-Street,E10HD000040101,310043212
http://statistics.data.gov.uk/id/local-authority/29UP,Tonbridge & Malling Borough Council,2/7/2024,0031020019/4,31020019, 5.45,Imperial Civil Enforcement Solutions,00057200,,Purchases,Parking On-Street,E10HD000040101,310043212
http://statistics.data.gov.uk/id/local-authority/29UP,Tonbridge & Malling Borough Council,2/7/2024,0031020020/1,31020020, 1479.00,C. S. Mitchell LTD,01704800,,BRREP Car Park mntce,Larkfield Leisure Centre,M15HDP20001953,310043167
http://statistics.data.gov.uk/id/local-authority/29UP,Tonbridge & Malling Borough Council,2/7/2024,0031020021/1,31020021, 180.00,C. S. Mitchell LTD,01704800,,Premises Repairs & Maintenance,Parking Off-Street,E10HA000020601,310043213
http://statistics.data.gov.uk/id/local-authority/29UP,Tonbridge & Malling Borough Council,2/7/2024,0031020022/1,31020022, 2087.47,CDER Group,01773300,,Adjudication & Enforcement Ser,Parking Off-Street,E10HA000044230,
http://statistics.data.gov.uk/id/local-authority/29UP,Tonbridge & Malling Borough Council,2/7/2024,0031020023/1,31020023, 1992.08,PSR Lighting & Signs Ltd,01265400,986561173,Maintenance of Grounds,Sports Grounds,B13ET000020402,210057534
http://statistics.data.gov.uk/id/local-authority/29UP,Tonbridge & Malling Borough Council,2/7/2024,0031020023/2,31020023, 1099.00,PSR Lighting & Signs Ltd,01265400,986561173,Maintenance of Grounds,Sports Grounds,B13ET000020402,210057534
http://statistics.data.gov.uk/id/local-authority/29UP,Tonbridge & Malling Borough Council,2/7/2024,0032010725/1,32010725, 2066.25,Vivid Resourcing,01773700,,Temporary Staff,Planning Sals&Overheads,D01AJDJ0111300,
http://statistics.data.gov.uk/id/local-authority/29UP,Tonbridge & Malling Borough Council,2/7/2024,0032010726/1,32010726, 200.00,P K Saunders Electrical Ltd,01900800,,Competent Persons Schemes,Building Control,A01AD000048116,
http://statistics.data.gov.uk/id/local-authority/29UP,Tonbridge & Malling Borough Council,2/7/2024,0032010727/1,32010727, 1700.00,Hays Specialist Recruitment Limited,01879200,773695871,Temporary Staff,Planning Sals&Overheads,D01AJDJ0311300,
http://statistics.data.gov.uk/id/local-authority/29UP,Tonbridge & Malling Borough Council,2/7/2024,0032010728/1,32010728, 1121.00,G2 Recruitment Solutions,01786000,,Temporary Staff,Planning Sals&Overheads,D01AJDJ0111300,
http://statistics.data.gov.uk/id/local-authority/29UP,Tonbridge & Malling Borough Council,2/7/2024,0032010729/1,32010729, 2700.00,G2 Recruitment Solutions,01786000,,Temporary Staff,Planning Sals&Overheads,D01AJDJ0011300,
http://statistics.data.gov.uk/id/local-authority/29UP,Tonbridge & Malling Borough Council,2/7/2024,0032010730/3,32010730, 1340.90,Carrington West Limited,01844500,,Temporary Staff,Planning Sals&Overheads,D01AJDJ0111300,
http://statistics.data.gov.uk/id/local-authority/29UP,Tonbridge & Malling Borough Council,2/7/2024,0032010732/1,32010732, 40995.25,East Malling & Larkfield Parish Council,00030200,,Payments,S106 - Commuted Sums,M04AD000001001,
http://statistics.data.gov.uk/id/local-authority/29UP,Tonbridge & Malling Borough Council,2/7/2024,0041036267/1,41036267, 22.47,Amazon EU SARL,01738400,,Stationery,Finance Sals&Overheads,D01AFDF1143003,410032583
http://statistics.data.gov.uk/id/local-authority/29UP,Tonbridge & Malling Borough Council,2/7/2024,0041036268/1,41036268, 20.00,Computershare Voucher Services,01212600,,Childcare Scheme,Finance Sals&Overheads,D01AFDF0911136,
http://statistics.data.gov.uk/id/local-authority/29UP,Tonbridge & Malling Borough Council,2/7/2024,0041036268/2,41036268, 1.40,Computershare Voucher Services,01212600,,National Insurance,Finance Sals&Overheads,D01AFDF0911191,
http://statistics.data.gov.uk/id/local-authority/29UP,Tonbridge & Malling Borough Council,2/7/2024,0041036268/3,41036268, 20.00,Computershare Voucher Services,01212600,,Childcare Scheme,Env Hlth & Hsg Sals&Overheads,D01AVDV0211136,
http://statistics.data.gov.uk/id/local-authority/29UP,Tonbridge & Malling Borough Council,2/7/2024,0041036268/4,41036268, 1.40,Computershare Voucher Services,01212600,,National Insurance,Env Hlth & Hsg Sals&Overheads,D01AVDV0211191,
http://statistics.data.gov.uk/id/local-authority/29UP,Tonbridge & Malling Borough Council,2/7/2024,0041036273/1,41036273, 1995.00,LG Futures Ltd,01108200,,Subscriptions,Finance Sals&Overheads,D01AFDF0247002,410032547
http://statistics.data.gov.uk/id/local-authority/29UP,Tonbridge & Malling Borough Council,2/7/2024,0041036274/1,41036274, 3500.00,Diocese of Rochester,01786500,,Charitable / Voluntary Organis,Grants & Payments to Vol Orgn,D37PACV1947005,
http://statistics.data.gov.uk/id/local-authority/29UP,Tonbridge & Malling Borough Council,2/7/2024,0041036275/1,41036275, 1835.00,CIPFA Business Limited,01216800,,Reference Books & Publications,Finance Sals&Overheads,D01AFDF0243010,410032586
http://statistics.data.gov.uk/id/local-authority/29UP,Tonbridge & Malling Borough Council,2/7/2024,0041036276/1,41036276, 29589.63,Osbornes Solicitors LLP,01902300,,Legal Fees,Homelessness,C01AA000044002,
http://statistics.data.gov.uk/id/local-authority/29UP,Tonbridge & Malling Borough Council,2/7/2024,0041036277/1,41036277, 520.00,HB Info Ltd,01478600,880720227,Subscriptions,Finance Sals&Overheads,D01AFDF1147002,
http://statistics.data.gov.uk/id/local-authority/29UP,Tonbridge & Malling Borough Council,2/7/2024,0051008904/1,51008904, 290.00,BGPS,01932700,,Ext Fees/Prof & Tech,Training,D10DCDV0713561,
http://statistics.data.gov.uk/id/local-authority/29UP,Tonbridge & Malling Borough Council,2/7/2024,0051008905/1,51008905, 220.00,RTPI South East,01249600,,Ext Fees/Prof & Tech,Training,D10DCDJ0113561,
http://statistics.data.gov.uk/id/local-authority/29UP,Tonbridge & Malling Borough Council,2/13/2024,0041036292/1,41036292, 9000.00,Gullands LLP,01933400,,Contributions to Other Bodies,Public Conveniences,H22SC000048018,
http://statistics.data.gov.uk/id/local-authority/29UP,Tonbridge & Malling Borough Council,2/14/2024,0011047686/1,11047686, 9551.40,Roughway Farm,01930600,,Capital Grants (RECS),Rural England Prosperity Fund,P06F0F01047771,
http://statistics.data.gov.uk/id/local-authority/29UP,Tonbridge & Malling Borough Council,2/14/2024,0011047687/1,11047687, 26.01,Oasis Group  - Box-It South East,00966800,931579211,Purchases,Electoral Registration,D31MF000040101,
http://statistics.data.gov.uk/id/local-authority/29UP,Tonbridge & Malling Borough Council,2/14/2024,0011047688/1,11047688, 610.90,NewAuto Ltd T/A MOGO UK,00479100,651671338,Purchases,Licences - Fee Paying,H27SH000040101,110070740
http://statistics.data.gov.uk/id/local-authority/29UP,Tonbridge & Malling Borough Council,2/14/2024,0011047689/1,11047689, 1538.00,Loxton Installations Ltd,01278800,204934869,BRREP Servicing-roller shutter,Larkfield Leisure Centre,M15HDP20001928,110070766
http://statistics.data.gov.uk/id/local-authority/29UP,Tonbridge & Malling Borough Council,2/14/2024,0011047690/1,11047690, 651.60,Encore Envelopes Ltd,01750600,,External Printing,Electoral Registration,D31MF000043001,
http://statistics.data.gov.uk/id/local-authority/29UP,Tonbridge & Malling Borough Council,2/14/2024,0011047691/1,11047691, 1204.40,Sellick Partnership Group Limited,01336800,864288095,Temporary Staff,Legal Sals&Overheads,D01ARDR0011300,
http://statistics.data.gov.uk/id/local-authority/29UP,Tonbridge & Malling Borough Council,2/14/2024,0011047692/1,11047692, 1217.80,Sellick Partnership Group Limited,01336800,864288095,Temporary Staff,Legal Sals&Overheads,D01ARDR0011300,
http://statistics.data.gov.uk/id/local-authority/29UP,Tonbridge & Malling Borough Council,2/14/2024,0011047693/1,11047693, 350.00,Royal British Legion Industries Ltd,00139700,,Economic Development & Regen,Eco Dev & Reg Gen Bus Support,D52TD000047027,
http://statistics.data.gov.uk/id/local-authority/29UP,Tonbridge & Malling Borough Council,2/14/2024,0011047694/1,11047694, 418.00,Disclosure & Barring Service,00865900,,Professional Fees,Licences - Fee Paying,H27SH000044001,
http://statistics.data.gov.uk/id/local-authority/29UP,Tonbridge & Malling Borough Council,2/14/2024,0011047695/1,11047695, 6.00,Thomson Snell & Passmore,00101700,210327030,Legal Fees,Legal Sals&Overheads,D01ARDR0044002,
http://statistics.data.gov.uk/id/local-authority/29UP,Tonbridge & Malling Borough Council,2/14/2024,0011047696/3,11047696, 1204.40,Sellick Partnership Group Limited,01336800,864288095,Temporary Staff,Legal Sals&Overheads,D01ARDR0011300,
http://statistics.data.gov.uk/id/local-authority/29UP,Tonbridge & Malling Borough Council,2/14/2024,0011047697/3,11047697, 458.69,Ricoh UK Ltd,01402300,,Maintenance - General,Printing,D22GA000040135,
http://statistics.data.gov.uk/id/local-authority/29UP,Tonbridge & Malling Borough Council,2/14/2024,0011047698/3,11047698, 1307.48,Ricoh UK Ltd,01402300,,Maintenance - General,Printing,D22GA000040135,
http://statistics.data.gov.uk/id/local-authority/29UP,Tonbridge & Malling Borough Council,2/14/2024,0011047699/1,11047699, 36.99,KCS Education/CSG Global Education Ltd,01897200,408845925,Uniforms,Cleaning & Security,D21FD000042002,110070725
http://statistics.data.gov.uk/id/local-authority/29UP,Tonbridge & Malling Borough Council,2/14/2024,0011047699/2,11047699, 34.99,KCS Education/CSG Global Education Ltd,01897200,408845925,Uniforms,Cleaning & Security,D21FD000042002,110070725
http://statistics.data.gov.uk/id/local-authority/29UP,Tonbridge & Malling Borough Council,2/14/2024,0011047700/1,11047700, 280.00,G C Industrial Heating Services,00578100,292124905,BRREP Response - General,Leis Man Poult Wood Golf Centr,M15HEP50001997,110070726
http://statistics.data.gov.uk/id/local-authority/29UP,Tonbridge & Malling Borough Council,2/14/2024,0011047702/3,11047702, 1600.00,The Oyster Partnership,01196400,832961025,Temporary Staff,Admin & Prop Sals&Overheads,D01AADA1111300,
http://statistics.data.gov.uk/id/local-authority/29UP,Tonbridge & Malling Borough Council,2/14/2024,0011047703/1,11047703, 76.20,Sideways Media,01836200,,Marketing,Information & Publicity,D32MJ000044215,110070770
http://statistics.data.gov.uk/id/local-authority/29UP,Tonbridge & Malling Borough Council,2/14/2024,0011047704/3,11047704, 1106.25,G2 Recruitment Solutions,01786000,,Temporary Staff,Legal Sals&Overheads,D01ARDR0311300,
http://statistics.data.gov.uk/id/local-authority/29UP,Tonbridge & Malling Borough Council,2/14/2024,0011047705/3,11047705, 11.63,Francis Taylor Building,01688700,,Other Planning Enq - Legal Cos,Legal Sals&Overheads,D01ARDR0044146,
http://statistics.data.gov.uk/id/local-authority/29UP,Tonbridge & Malling Borough Council,2/14/2024,0011047707/1,11047707, 376.00,Loxton Installations Ltd,01278800,204934869,BRREP Response - General,Larkfield Leisure Centre,M15HDP50001997,110070756
http://statistics.data.gov.uk/id/local-authority/29UP,Tonbridge & Malling Borough Council,2/14/2024,0011047708/1,11047708, 1030.00,Loxton Installations Ltd,01278800,204934869,BRREP Servicing - ext lighting,Tonbridge Castle / CAB,M15KFP20001941,110070759
http://statistics.data.gov.uk/id/local-authority/29UP,Tonbridge & Malling Borough Council,2/14/2024,0011047709/1,11047709, 566.00,Loxton Installations Ltd,01278800,204934869,BRREP Serv Internal Lighting,Gibson Building East,M15KGP20001957,110070755
http://statistics.data.gov.uk/id/local-authority/29UP,Tonbridge & Malling Borough Council,2/14/2024,0021039146/1,21039146, 899.28,PSR Lighting & Signs Ltd,01265400,986561173,Maintenance of Grounds,Sports Grounds,B13ET000020402,210057549
http://statistics.data.gov.uk/id/local-authority/29UP,Tonbridge & Malling Borough Council,2/14/2024,0021039147/1,21039147, 1664.00,Borough Green Chamber of Commerce,01350200,,Borough Christmas Lighting,Eco Dev & Reg Boro Chris Light,D52TE000047014,
http://statistics.data.gov.uk/id/local-authority/29UP,Tonbridge & Malling Borough Council,2/14/2024,0021039148/1,21039148, 250.00,SWS Countryside & Landscape,01567200,,Health & Safety - Trees,Countryside/Woodland Mgt,B22LG000044045,
http://statistics.data.gov.uk/id/local-authority/29UP,Tonbridge & Malling Borough Council,2/14/2024,0021039149/1,21039149, 600.00,SWS Countryside & Landscape,01567200,,Health & Safety - Trees,Countryside/Woodland Mgt,B22LG000044045,
http://statistics.data.gov.uk/id/local-authority/29UP,Tonbridge & Malling Borough Council,2/14/2024,0021039150/1,21039150, 600.00,SWS Countryside & Landscape,01567200,,Health & Safety - Trees,Countryside/Woodland Mgt,B22LG000044045,
http://statistics.data.gov.uk/id/local-authority/29UP,Tonbridge & Malling Borough Council,2/14/2024,0021039151/3,21039151, 500.00,SWS Countryside & Landscape,01567200,,Health & Safety - Trees,Countryside/Woodland Mgt,B22LG000044045,
http://statistics.data.gov.uk/id/local-authority/29UP,Tonbridge & Malling Borough Council,2/14/2024,0021039152/1,21039152, 350.00,SWS Countryside & Landscape,01567200,,Health & Safety - Trees,Countryside/Woodland Mgt,B22LG000044045,
http://statistics.data.gov.uk/id/local-authority/29UP,Tonbridge & Malling Borough Council,2/14/2024,0021039153/1,21039153, 535.96,South East Water Ltd,00572200,,Water Charges (Metered),Homelessness,C01AAMAUN24001,
http://statistics.data.gov.uk/id/local-authority/29UP,Tonbridge & Malling Borough Council,2/14/2024,0021039154/1,21039154, 682.00,Fenland Leisure Products Ltd,01675100,,Maintenance of Play Equipment,Open Spaces & Amenity Areas,B22LE000020503,210057480
http://statistics.data.gov.uk/id/local-authority/29UP,Tonbridge & Malling Borough Council,2/14/2024,0021039155/1,21039155, 250.00,Lamberhurst Engineering Ltd,01306400,430064050,Purchases,Haysden Country Park,B22LC000040101,210057550
http://statistics.data.gov.uk/id/local-authority/29UP,Tonbridge & Malling Borough Council,2/14/2024,0021039156/1,21039156, 333.31,Kings Hill Recruitment,01738900,,Temporary Staff,Planning Sals&Overheads,D01AJDJ0111300,
http://statistics.data.gov.uk/id/local-authority/29UP,Tonbridge & Malling Borough Council,2/14/2024,0021039157/1,21039157, 151.89,KCC - L.A.S.E.R Commercial Services ,00184300,,Electricity,Cemetery,B26MP000021002,
http://statistics.data.gov.uk/id/local-authority/29UP,Tonbridge & Malling Borough Council,2/14/2024,0021039158/1,21039158, 95.00,Flash Mobile Welding Services Ltd,01189200,,Maintenance of Grounds,Sports Grounds,B13ET000020402,210057562
http://statistics.data.gov.uk/id/local-authority/29UP,Tonbridge & Malling Borough Council,2/14/2024,0022028488/1,22028488, 1190.40,Waste Way (Southern Ltd),01923700,,Contract Payments,Street Scene,H23SD000054001,220003439
http://statistics.data.gov.uk/id/local-authority/29UP,Tonbridge & Malling Borough Council,2/14/2024,0022028489/3,22028489, 2888.55,Ward Security LTD,01490000,,Dog Warden,Street Scene,H23SD000044100,
http://statistics.data.gov.uk/id/local-authority/29UP,Tonbridge & Malling Borough Council,2/14/2024,0022028491/3,22028491, 1105.50,G2 Recruitment Solutions,01786000,,Temporary Staff,Env Hlth & Hsg Sals&Overheads,D01AVDV0711300,
http://statistics.data.gov.uk/id/local-authority/29UP,Tonbridge & Malling Borough Council,2/14/2024,0022028492/3,22028492, 74.13,EDF Energy Customers plc,01035000,,Electricity,Homelessness,C01AATNHS21002,
http://statistics.data.gov.uk/id/local-authority/29UP,Tonbridge & Malling Borough Council,2/14/2024,0022028493/3,22028493, 245.00,Countrystyle Group,00835900,781981681,Collection of Card,Dry Recycling,H34SR000054008,
http://statistics.data.gov.uk/id/local-authority/29UP,Tonbridge & Malling Borough Council,2/14/2024,0022028494/1,22028494, 8640.86,Daytrad,01425400,,Other Expenses,Disabled Facilities Grant Mand,P03AC000009908,
http://statistics.data.gov.uk/id/local-authority/29UP,Tonbridge & Malling Borough Council,2/14/2024,0022028495/1,22028495, 18070.40,Acorn Maintenance Services,01036000,,Other Expenses,Disabled Facilities Grant Mand,P03AC000009908,
http://statistics.data.gov.uk/id/local-authority/29UP,Tonbridge & Malling Borough Council,2/14/2024,0022028496/3,22028496, 252.50,Abate Pest Managment Services,01476700,786617382,Other Expenses,Pest Control,H24SE000048010,
http://statistics.data.gov.uk/id/local-authority/29UP,Tonbridge & Malling Borough Council,2/14/2024,0022028497/1,22028497, 15309.00,Craemer UK LTD,01616400,,Initial Furniture & Equipment,Green Waste Bin Growth/Replace,P02BC000009906,220003418
http://statistics.data.gov.uk/id/local-authority/29UP,Tonbridge & Malling Borough Council,2/14/2024,0022028498/1,22028498, 573.75,The Speedy Kitchen,01893600,,Charitable / Voluntary Organis,Grants & Payments to Vol Orgn,D37PACV1947005,220003448
http://statistics.data.gov.uk/id/local-authority/29UP,Tonbridge & Malling Borough Council,2/14/2024,0022028499/1,22028499, 583.00,The Speedy Kitchen,01893600,,Charitable / Voluntary Organis,Grants & Payments to Vol Orgn,D37PACV1947005,220003449
http://statistics.data.gov.uk/id/local-authority/29UP,Tonbridge & Malling Borough Council,2/14/2024,0022028500/1,22028500, 174.15,Language Line,00835100,,Professional Fees,Homelessness,C01AA000044001,
http://statistics.data.gov.uk/id/local-authority/29UP,Tonbridge & Malling Borough Council,2/14/2024,0022028501/1,22028501, 103.15,Language Line,00835100,,Professional Fees,Homelessness,C01AA000044001,
http://statistics.data.gov.uk/id/local-authority/29UP,Tonbridge & Malling Borough Council,2/14/2024,0022028502/1,22028502, 189.99,British Gas Services LTD,01260000,,Electricity,Homelessness,C01AAMAUN21002,
http://statistics.data.gov.uk/id/local-authority/29UP,Tonbridge & Malling Borough Council,2/14/2024,0022028503/1,22028503, 749.16,British Gas Services LTD,01260000,,Electricity,Homelessness,C01AAMAUN21002,
http://statistics.data.gov.uk/id/local-authority/29UP,Tonbridge & Malling Borough Council,2/14/2024,0022028504/1,22028504, 165.79,British Gas,01148500,,Electricity,Homelessness,C01AAMAUN21002,
http://statistics.data.gov.uk/id/local-authority/29UP,Tonbridge & Malling Borough Council,2/14/2024,0022028505/1,22028505, 1086.00,Town & Country Housing Group,01385400,,Other Expenses,Disabled Facilities Grant Mand,P03AC000009908,
http://statistics.data.gov.uk/id/local-authority/29UP,Tonbridge & Malling Borough Council,2/14/2024,0022028506/1,22028506, 1030.00,WRM Property Services,01878100,,Homelessness Reduction Initiat,Homelessness,C01AA000048019,
http://statistics.data.gov.uk/id/local-authority/29UP,Tonbridge & Malling Borough Council,2/14/2024,0022028507/1,22028507, 352.32,Maidstone Borough Council,01173700,,Council Tax,Homelessness,C01AAMAUN23002,
http://statistics.data.gov.uk/id/local-authority/29UP,Tonbridge & Malling Borough Council,2/14/2024,0022028509/1,22028509, 535.00,Britains Limited,01743900,,Repairs & Mtce to Buildings,Homelessness,C01AATNHS20101,220003441
http://statistics.data.gov.uk/id/local-authority/29UP,Tonbridge & Malling Borough Council,2/14/2024,0022028510/1,22028510, 3.45,Octopus Energy,01895300,,Electricity,Homelessness,C01AATNHS21002,
http://statistics.data.gov.uk/id/local-authority/29UP,Tonbridge & Malling Borough Council,2/14/2024,0022028511/1,22028511, 222.88,Octopus Energy,01895300,,Electricity,Homelessness,C01AATNHS21002,
http://statistics.data.gov.uk/id/local-authority/29UP,Tonbridge & Malling Borough Council,2/14/2024,0022028512/1,22028512, 1429.07,Town & Country Housing Group,01385400,,Other Expenses,Disabled Facilities Grant Mand,P03AC000009908,
http://statistics.data.gov.uk/id/local-authority/29UP,Tonbridge & Malling Borough Council,2/14/2024,0022028513/1,22028513, 7939.29,Webb-Flint Building & Maintenance Ltd,01913100,,Other Expenses,Disabled Facilities Grant Mand,P03AC000009908,
http://statistics.data.gov.uk/id/local-authority/29UP,Tonbridge & Malling Borough Council,2/14/2024,0031020024/1,31020024, 1559.75,Patrol,01189800,,Adjudication & Enforcement Ser,Parking Off-Street,E10HA000044230,
http://statistics.data.gov.uk/id/local-authority/29UP,Tonbridge & Malling Borough Council,2/14/2024,0031020025/1,31020025, 560.00,HALO Technologies Europe LTD,01824700,,Maintenance - General,Security Services Management,E09GA000040135,310043224
http://statistics.data.gov.uk/id/local-authority/29UP,Tonbridge & Malling Borough Council,2/14/2024,0031020025/2,31020025, 1520.00,HALO Technologies Europe LTD,01824700,,Maintenance - General,Security Services Management,E09GA000040135,310043224
http://statistics.data.gov.uk/id/local-authority/29UP,Tonbridge & Malling Borough Council,2/14/2024,0031020026/3,31020026, 79.41,Amazon EU SARL,01738400,,Health General,Technical Sals&Overheads,D01AE000044049,
http://statistics.data.gov.uk/id/local-authority/29UP,Tonbridge & Malling Borough Council,2/14/2024,0031020027/1,31020027, 1555.36,Town & Country Housing Group,01385400,,Other Expenses,Disabled Facilities Grant Mand,P03AC000009908,
http://statistics.data.gov.uk/id/local-authority/29UP,Tonbridge & Malling Borough Council,2/14/2024,0031020029/3,31020029, 4889.35,G4S Cash Solutions ( UK ) Ltd,01398400,,Cash Collection,Parking Off-Street,E10HA000044007,
http://statistics.data.gov.uk/id/local-authority/29UP,Tonbridge & Malling Borough Council,2/14/2024,0031020030/3,31020030, 809.37,CDER Group,01773300,,Adjudication & Enforcement Ser,Parking Off-Street,E10HA000044230,
http://statistics.data.gov.uk/id/local-authority/29UP,Tonbridge & Malling Borough Council,2/14/2024,0031020032/1,31020032, 1470.00,DSSL Group Ltd,01839500,,CCTV Monitoring Station,Security Services Management,E09GA000051020,310043201
http://statistics.data.gov.uk/id/local-authority/29UP,Tonbridge & Malling Borough Council,2/14/2024,0031020034/1,31020034, 600.00,SWS Countryside & Landscape,01567200,,Other Expenses,TRSG Riverside Rivetment,P05DD000009908,310043229
http://statistics.data.gov.uk/id/local-authority/29UP,Tonbridge & Malling Borough Council,2/14/2024,0031020037/1,31020037, 250.00,Forge Engineering,00137700,,Premises Repairs & Maintenance,Parking Off-Street,E10HA000020601,310043242
http://statistics.data.gov.uk/id/local-authority/29UP,Tonbridge & Malling Borough Council,2/14/2024,0032010733/3,32010733, 1774.95,The Oyster Partnership,01196400,832961025,Temporary Staff,Planning Sals&Overheads,D01AJDJ0111300,
http://statistics.data.gov.uk/id/local-authority/29UP,Tonbridge & Malling Borough Council,2/14/2024,0032010734/1,32010734, 20836.10,Offham Parish Council,00073400,,Payments,S106 - Commuted Sums,M04AD000001001,
http://statistics.data.gov.uk/id/local-authority/29UP,Tonbridge & Malling Borough Council,2/14/2024,0032010735/3,32010735, 2077.00,Hays Specialist Recruitment Limited,01879200,773695871,Temporary Staff,Planning Sals&Overheads,D01AJDJ0111300,
http://statistics.data.gov.uk/id/local-authority/29UP,Tonbridge & Malling Borough Council,2/14/2024,0032010736/3,32010736, 1700.00,Hays Specialist Recruitment Limited,01879200,773695871,Temporary Staff,Planning Sals&Overheads,D01AJDJ0311300,
http://statistics.data.gov.uk/id/local-authority/29UP,Tonbridge & Malling Borough Council,2/14/2024,0032010738/1,32010738, 182.07,KM Media Group Ltd,00053900,,Advertising General,Development Management,A01ABZ99944216,320003581
http://statistics.data.gov.uk/id/local-authority/29UP,Tonbridge & Malling Borough Council,2/14/2024,0032010741/3,32010741, 1659.33,G2 Recruitment Solutions,01786000,,Temporary Staff,Planning Sals&Overheads,D01AJDJ0111300,
http://statistics.data.gov.uk/id/local-authority/29UP,Tonbridge & Malling Borough Council,2/14/2024,0032010743/1,32010743, 203.49,KM Media Group Ltd,00053900,,Advertising General,Development Management,A01ABZ99944216,320003592
http://statistics.data.gov.uk/id/local-authority/29UP,Tonbridge & Malling Borough Council,2/14/2024,0032010744/1,32010744, 160.65,KM Media Group Ltd,00053900,,Advertising General,Development Management,A01ABZ99944216,320003582
http://statistics.data.gov.uk/id/local-authority/29UP,Tonbridge & Malling Borough Council,2/14/2024,0041036283/1,41036283, 91.77,Adelante Software Limited,01393800,812115871,Credit Card Commission,Banking Arrangements,D43QK000044082,
http://statistics.data.gov.uk/id/local-authority/29UP,Tonbridge & Malling Borough Council,2/14/2024,0041036285/1,41036285, 100.00,Department for Energy Security & Net Zer,01928500,,Government Grants,Council Tax Support,D42QFFUEL90001,
http://statistics.data.gov.uk/id/local-authority/29UP,Tonbridge & Malling Borough Council,2/14/2024,0041036286/3,41036286, 3527.72,Kent County Council,00322500,204269191,Temporary Staff,Finance Sals&Overheads,D01AFDF0611300,
http://statistics.data.gov.uk/id/local-authority/29UP,Tonbridge & Malling Borough Council,2/14/2024,0041036287/1,41036287, 1870.00,LoCTA Ltd,01758700,,Tracing Services,Local Revenue & NNDR Collect,D41QA000044091,410032593
http://statistics.data.gov.uk/id/local-authority/29UP,Tonbridge & Malling Borough Council,2/14/2024,0041036288/3,41036288, 2423.24,Maidstone Borough Council,01173700,,Bailiffs Commission,Local Revenue & NNDR Collect,D41QA000044075,
http://statistics.data.gov.uk/id/local-authority/29UP,Tonbridge & Malling Borough Council,2/14/2024,0041036289/3,41036289, 1700.65,Rundle & Co Ltd,00087200,,Bailiffs Commission,Local Revenue & NNDR Collect,D41QA000044075,
http://statistics.data.gov.uk/id/local-authority/29UP,Tonbridge & Malling Borough Council,2/14/2024,0041036290/3,41036290, 3110.26,Rundle & Co Ltd,00087200,,Bailiffs Commission,Local Revenue & NNDR Collect,D41QA000044075,
http://statistics.data.gov.uk/id/local-authority/29UP,Tonbridge & Malling Borough Council,2/14/2024,0051008903/1,51008903, 110.00,Association Democratic Services Officers,01472800,,Ext Fees/Prof & Tech,Training,D10DCDA0313561,510010669
http://statistics.data.gov.uk/id/local-authority/29UP,Tonbridge & Malling Borough Council,2/14/2024,0051008907/1,51008907, 914.00,APSE Asso for Public Service Excellence,01182700,248298368,Ext Fees/Prof & Tech,Training,D10DCDG0113561,510010674
http://statistics.data.gov.uk/id/local-authority/29UP,Tonbridge & Malling Borough Council,2/14/2024,0051008908/1,51008908, 76.00,Commercial Services Kent Ltd,01655800,,Criminal Records Bureau Checks,Recruitment Expenses,D10DA000013180,510010681
http://statistics.data.gov.uk/id/local-authority/29UP,Tonbridge & Malling Borough Council,2/14/2024,0051008908/2,51008908, 15.00,Commercial Services Kent Ltd,01655800,,Criminal Records Bureau Checks,Recruitment Expenses,D10DA000013180,510010681
http://statistics.data.gov.uk/id/local-authority/29UP,Tonbridge & Malling Borough Council,2/15/2024,0041036297/1,41036297, 70.93,Allpay Limited,01816500,,Giro / Swipe Card Charges,Local Revenue & NNDR Collect,D41QA000044083,
http://statistics.data.gov.uk/id/local-authority/29UP,Tonbridge & Malling Borough Council,2/16/2024,0041036299/1,41036299, 186.35,National Westminster Bank Plc,00069400,,Bank Charges,Banking Arrangements,D43QK000044222,
http://statistics.data.gov.uk/id/local-authority/29UP,Tonbridge & Malling Borough Council,2/21/2024,0011047123/1,11047123, 50.00,SJC Door Security Installations,01278600,776270015,Purchases,Admin & Prop Sals&Overheads,D01AADA0040101,
http://statistics.data.gov.uk/id/local-authority/29UP,Tonbridge & Malling Borough Council,2/21/2024,0011047341/1,11047341, 98.70,Royal Mail,00086200,243170002,Postages - Business Reply,Electoral Registration,D31MF000045003,
http://statistics.data.gov.uk/id/local-authority/29UP,Tonbridge & Malling Borough Council,2/21/2024,0011047341/2,11047341, 18.90,Royal Mail,00086200,243170002,Purchases,Business Reply Stock Account,K14AT000001002,
http://statistics.data.gov.uk/id/local-authority/29UP,Tonbridge & Malling Borough Council,2/21/2024,0011047710/3,11047710, 1667.83,Royal Mail,00086200,243170002,Purchases,Mailsort Stock Account,K37BR000001002,
http://statistics.data.gov.uk/id/local-authority/29UP,Tonbridge & Malling Borough Council,2/21/2024,0011047710/4,11047710, 7.56,Royal Mail,00086200,243170002,Purchases,Mailsort Stock Account,K37BR000001002,
http://statistics.data.gov.uk/id/local-authority/29UP,Tonbridge & Malling Borough Council,2/21/2024,0011047711/3,11047711, 237.07,Initial Washroom Hygiene,00048300,209918933,Laundry - Roller Towels,Cleaning & Security,D21FD000042003,
http://statistics.data.gov.uk/id/local-authority/29UP,Tonbridge & Malling Borough Council,2/21/2024,0011047712/3,11047712, 1147.20,Antalis,01556800,317187204,Purchases - Paper,Printing,D22GA000040102,
http://statistics.data.gov.uk/id/local-authority/29UP,Tonbridge & Malling Borough Council,2/21/2024,0011047713/3,11047713, 78.18,EDF- Accounts starting with A,01921000,,Repairs & Mtce to Buildings,Homelessness,C01AATNHS20101,
http://statistics.data.gov.uk/id/local-authority/29UP,Tonbridge & Malling Borough Council,2/21/2024,0011047714/3,11047714, 4.40,Spy Alarms Ltd,01608800,,BRREP Servicing-IntruderAlarm,Gibson Building West,M15KBP20001939,
http://statistics.data.gov.uk/id/local-authority/29UP,Tonbridge & Malling Borough Council,2/21/2024,0011047715/3,11047715, 4.40,Spy Alarms Ltd,01608800,,BRREP Servicing-IntruderAlarm,Gibson Building East,M15KGP20001939,
http://statistics.data.gov.uk/id/local-authority/29UP,Tonbridge & Malling Borough Council,2/21/2024,0011047716/3,11047716, 1217.80,Sellick Partnership Group Limited,01336800,864288095,Temporary Staff,Legal Sals&Overheads,D01ARDR0011300,
http://statistics.data.gov.uk/id/local-authority/29UP,Tonbridge & Malling Borough Council,2/21/2024,0011047717/3,11047717, 155.88,TwoFold Limited,00518000,757277100,Purchases,Printing,D22GA000040101,
http://statistics.data.gov.uk/id/local-authority/29UP,Tonbridge & Malling Borough Council,2/21/2024,0011047718/3,11047718, 40.00,Guardian Security & Fire Ltd,01899300,,BRREP Servicing - FireAlarmSys,Angel Centre,M15HAP20001937,
http://statistics.data.gov.uk/id/local-authority/29UP,Tonbridge & Malling Borough Council,2/21/2024,0011047719/3,11047719, 98.55,Ovenden Papers Ltd,01599100,,Purchases - Paper,Printing,D22GA000040102,
http://statistics.data.gov.uk/id/local-authority/29UP,Tonbridge & Malling Borough Council,2/21/2024,0011047720/3,11047720, 163.65,Atlas Facilities Managment Limited ,01075900,,Miscellaneous Services,Cleaning & Security,D21FDDD6044015,
http://statistics.data.gov.uk/id/local-authority/29UP,Tonbridge & Malling Borough Council,2/21/2024,0011047721/3,11047721, 54.55,Atlas Facilities Managment Limited ,01075900,,Miscellaneous Services,Cleaning & Security,D21FDDD1044015,
http://statistics.data.gov.uk/id/local-authority/29UP,Tonbridge & Malling Borough Council,2/21/2024,0011047722/3,11047722, 87.85,Biffa Waste Services Ltd,01284500,,Trade Refuse Charges,Cleaning & Security,D21FD000044008,
http://statistics.data.gov.uk/id/local-authority/29UP,Tonbridge & Malling Borough Council,2/21/2024,0011047723/3,11047723, 175.70,Biffa Waste Services Ltd,01284500,,Trade Refuse Charges,Cleaning & Security,D21FD000044008,
http://statistics.data.gov.uk/id/local-authority/29UP,Tonbridge & Malling Borough Council,2/21/2024,0011047724/3,11047724, 94.09,Biffa Waste Services Ltd,01284500,,Trade Refuse Charges,Cleaning & Security,D21FD000044008,
http://statistics.data.gov.uk/id/local-authority/29UP,Tonbridge & Malling Borough Council,2/21/2024,0011047725/3,11047725, 60.90,Biffa Waste Services Ltd,01284500,,Trade Refuse Charges,Cleaning & Security,D21FD000044008,
http://statistics.data.gov.uk/id/local-authority/29UP,Tonbridge & Malling Borough Council,2/21/2024,0011047726/3,11047726, 73.08,Biffa Waste Services Ltd,01284500,,Trade Refuse Charges,Cleaning & Security,D21FD000044008,
http://statistics.data.gov.uk/id/local-authority/29UP,Tonbridge & Malling Borough Council,2/21/2024,0011047727/3,11047727, 216.90,Biffa Waste Services Ltd,01284500,,Trade Refuse Charges,Cleaning & Security,D21FD000044008,
http://statistics.data.gov.uk/id/local-authority/29UP,Tonbridge & Malling Borough Council,2/21/2024,0011047728/1,11047728, 1354.10,Spy Alarms Ltd,01608800,,BRREP Servicing-IntruderAlarm,Gibson Building East,M15KGP20001939,110070772
http://statistics.data.gov.uk/id/local-authority/29UP,Tonbridge & Malling Borough Council,2/21/2024,0011047730/3,11047730, 720.50,Sharpe Pritchard,00600500,,Legal Fees,Legal Sals&Overheads,D01ARDR0044002,
http://statistics.data.gov.uk/id/local-authority/29UP,Tonbridge & Malling Borough Council,2/21/2024,0011047731/1,11047731, 1163.80,Spy Alarms Ltd,01608800,,BRREP Servicing-IntruderAlarm,Gibson Building West,M15KBP20001939,110070771
http://statistics.data.gov.uk/id/local-authority/29UP,Tonbridge & Malling Borough Council,2/21/2024,0011047732/1,11047732, 2500.00,Baker Developments South East Ltd,01878900,446348183,BRREP Window/door repairs,Larkfield Leisure Centre,M15HDP20001919,110070761
http://statistics.data.gov.uk/id/local-authority/29UP,Tonbridge & Malling Borough Council,2/21/2024,0011047733/1,11047733, 2450.00,BML Building Services Ltd,01505000,124905523,BRREP Servicing-CarParkLightg,Larkfield Leisure Centre,M15HDP20001944,110070742
http://statistics.data.gov.uk/id/local-authority/29UP,Tonbridge & Malling Borough Council,2/21/2024,0011047734/1,11047734, 72.33,KCS - KCC,00054200,204269191,Estate Management Charge,Land Review,D40PS000020400,
http://statistics.data.gov.uk/id/local-authority/29UP,Tonbridge & Malling Borough Council,2/21/2024,0011047735/1,11047735, 72.23,KCS - KCC,00054200,204269191,Estate Management Charge,Land Review,D40PS000020400,
http://statistics.data.gov.uk/id/local-authority/29UP,Tonbridge & Malling Borough Council,2/21/2024,0011047736/3,11047736, 12.67,KCS - KCC,00054200,204269191,Estate Management Charge,Land Review,D40PS000020400,
http://statistics.data.gov.uk/id/local-authority/29UP,Tonbridge & Malling Borough Council,2/21/2024,0011047737/3,11047737, 46.94,KCS - KCC,00054200,204269191,Estate Management Charge,Land Review,D40PS000020400,
http://statistics.data.gov.uk/id/local-authority/29UP,Tonbridge & Malling Borough Council,2/21/2024,0011047738/1,11047738, 69.12,KCS - KCC,00054200,204269191,Estate Management Charge,Land Review,D40PS000020400,
http://statistics.data.gov.uk/id/local-authority/29UP,Tonbridge & Malling Borough Council,2/21/2024,0011047739/1,11047739, 71.58,KCS - KCC,00054200,204269191,Estate Management Charge,Land Review,D40PS000020400,
http://statistics.data.gov.uk/id/local-authority/29UP,Tonbridge & Malling Borough Council,2/21/2024,0011047740/1,11047740, 72.83,KCS - KCC,00054200,204269191,Estate Management Charge,Land Review,D40PS000020400,
http://statistics.data.gov.uk/id/local-authority/29UP,Tonbridge & Malling Borough Council,2/21/2024,0011047741/1,11047741, 23.75,KCS - KCC,00054200,204269191,Estate Management Charge,Land Review,D40PS000020400,
http://statistics.data.gov.uk/id/local-authority/29UP,Tonbridge & Malling Borough Council,2/21/2024,0011047742/1,11047742, 68.91,KCS - KCC,00054200,204269191,Estate Management Charge,Land Review,D40PS000020400,
http://statistics.data.gov.uk/id/local-authority/29UP,Tonbridge & Malling Borough Council,2/21/2024,0011047743/1,11047743, 72.03,KCS - KCC,00054200,204269191,Estate Management Charge,Land Review,D40PS000020400,
http://statistics.data.gov.uk/id/local-authority/29UP,Tonbridge & Malling Borough Council,2/21/2024,0011047744/1,11047744, 59.10,KCS - KCC,00054200,204269191,Estate Management Charge,Land Review,D40PS000020400,
http://statistics.data.gov.uk/id/local-authority/29UP,Tonbridge & Malling Borough Council,2/21/2024,0011047745/1,11047745, 97.47,KCS - KCC,00054200,204269191,Estate Management Charge,Land Review,D40PS000020400,
http://statistics.data.gov.uk/id/local-authority/29UP,Tonbridge & Malling Borough Council,2/21/2024,0011047756/1,11047756, 250.00,Swale Shutter & Door Services Ltd,01919200,,BRREP Servicing-entrance doors,Leybourne Lakes Country Park,M15HLP20001927,110070768
http://statistics.data.gov.uk/id/local-authority/29UP,Tonbridge & Malling Borough Council,2/21/2024,0011047757/1,11047757, 30934.49,Bishop Ltd,01927600,,BRREP General Maintenance,Larkfield Leisure Centre,M15HDP10001900,110070672
http://statistics.data.gov.uk/id/local-authority/29UP,Tonbridge & Malling Borough Council,2/21/2024,0011047758/1,11047758, 74.20,Guardian Security & Fire Ltd,01899300,,BRREP Servicing - FireAlarmSys,Tonbridge Castle Gatehouse,M15HKP20001937,110070411
http://statistics.data.gov.uk/id/local-authority/29UP,Tonbridge & Malling Borough Council,2/21/2024,0011047759/1,11047759, 3409.26,HOB Mechanical Services Ltd,01706000,,BRREP Servicing - boilers,Larkfield Leisure Centre,M15HDP20001929,110070569
http://statistics.data.gov.uk/id/local-authority/29UP,Tonbridge & Malling Borough Council,2/21/2024,0011047760/1,11047760, 72.30,KCS - KCC,00054200,204269191,Estate Management Charge,Land Review,D40PS000020400,
http://statistics.data.gov.uk/id/local-authority/29UP,Tonbridge & Malling Borough Council,2/21/2024,0011047761/1,11047761, 68.98,KCS - KCC,00054200,204269191,Estate Management Charge,Land Review,D40PS000020400,
http://statistics.data.gov.uk/id/local-authority/29UP,Tonbridge & Malling Borough Council,2/21/2024,0011047762/1,11047762, 7328.88,KCS - KCC,00054200,204269191,Gas,Buildings,D21FEDD1021003,
http://statistics.data.gov.uk/id/local-authority/29UP,Tonbridge & Malling Borough Council,2/21/2024,0011047763/1,11047763, 2305.97,KCS - KCC,00054200,204269191,Gas,Buildings,D21FEDD6021003,
http://statistics.data.gov.uk/id/local-authority/29UP,Tonbridge & Malling Borough Council,2/21/2024,0011047764/1,11047764, 2123.44,GSF SANDYLIGHT LTD,01705300,,Temporary Staff,Admin & Prop Sals&Overheads,D01AADA0511300,
http://statistics.data.gov.uk/id/local-authority/29UP,Tonbridge & Malling Borough Council,2/21/2024,0011047765/1,11047765, 1701.30,Royal Mail,00086200,243170002,Purchases,Mailsort Stock Account,K37BR000001002,
http://statistics.data.gov.uk/id/local-authority/29UP,Tonbridge & Malling Borough Council,2/21/2024,0011047765/2,11047765, 4.20,Royal Mail,00086200,243170002,Purchases,Mailsort Stock Account,K37BR000001002,
http://statistics.data.gov.uk/id/local-authority/29UP,Tonbridge & Malling Borough Council,2/21/2024,0011047765/3,11047765, 17.71,Royal Mail,00086200,243170002,Purchases,Mailsort Stock Account,K37BR000001002,
http://statistics.data.gov.uk/id/local-authority/29UP,Tonbridge & Malling Borough Council,2/21/2024,0011047766/1,11047766, 291.66,EDF- Accounts starting with A,01921000,,Repairs & Mtce to Buildings,Homelessness,C01AATNHS20101,
http://statistics.data.gov.uk/id/local-authority/29UP,Tonbridge & Malling Borough Council,2/21/2024,0011047767/1,11047767, 320.00,G C Industrial Heating Services,00578100,292124905,BRREP Response - General,Angel Centre,M15HAP50001997,110070745
http://statistics.data.gov.uk/id/local-authority/29UP,Tonbridge & Malling Borough Council,2/21/2024,0011047768/1,11047768, 1020.00,G C Industrial Heating Services,00578100,292124905,BRREP Response - General,Leis Man Poult Wood Golf Centr,M15HEP50001997,110070728
http://statistics.data.gov.uk/id/local-authority/29UP,Tonbridge & Malling Borough Council,2/21/2024,0011047769/1,11047769, 527.56,VIPSystem Ltd,01422600,383040374,Purchases,Licences - Fee Paying,H27SH000040101,110070676
http://statistics.data.gov.uk/id/local-authority/29UP,Tonbridge & Malling Borough Council,2/21/2024,0011047769/2,11047769, 370.70,VIPSystem Ltd,01422600,383040374,Purchases,Licences - Fee Paying,H27SH000040101,110070676
http://statistics.data.gov.uk/id/local-authority/29UP,Tonbridge & Malling Borough Council,2/21/2024,0011047770/1,11047770, 5000.00,Berry Housing Trust,01933600,,Contract Payments,UK Shared Prosperity Fund,P06FNFN6009904,
http://statistics.data.gov.uk/id/local-authority/29UP,Tonbridge & Malling Borough Council,2/21/2024,0011047771/1,11047771, 20.35,REDACTED PERSONAL DATA,01683000,,Castle Catering Provisions,Ton Castle Council Chamber,D21FC000041015,
http://statistics.data.gov.uk/id/local-authority/29UP,Tonbridge & Malling Borough Council,2/21/2024,0011047772/1,11047772, 1204.40,Sellick Partnership Group Limited,01336800,864288095,Temporary Staff,Legal Sals&Overheads,D01ARDR0011300,
http://statistics.data.gov.uk/id/local-authority/29UP,Tonbridge & Malling Borough Council,2/21/2024,0011047773/1,11047773, 1217.80,Sellick Partnership Group Limited,01336800,864288095,Temporary Staff,Legal Sals&Overheads,D01ARDR0011300,
http://statistics.data.gov.uk/id/local-authority/29UP,Tonbridge & Malling Borough Council,2/21/2024,0011047774/1,11047774, 3570.00,G C Industrial Heating Services,00578100,292124905,BRREP Plant renewals,Tonbridge Swimming Pool,M15HBP20001909,110070734
http://statistics.data.gov.uk/id/local-authority/29UP,Tonbridge & Malling Borough Council,2/21/2024,0011047775/1,11047775, 480.00,G C Industrial Heating Services,00578100,292124905,BRREP Response - General,Tonbridge Castle / CAB,M15KFP50001997,110070735
http://statistics.data.gov.uk/id/local-authority/29UP,Tonbridge & Malling Borough Council,2/21/2024,0011047776/1,11047776, 1590.00,G C Industrial Heating Services,00578100,292124905,BRREP Servicing - boilers,Tonbridge Swimming Pool,M15HBP20001929,110070758
http://statistics.data.gov.uk/id/local-authority/29UP,Tonbridge & Malling Borough Council,2/21/2024,0011047777/1,11047777, 1070.00,G C Industrial Heating Services,00578100,292124905,BRREP Servicing - Heating Syst,Angel Centre,M15HAP20001934,110070757
http://statistics.data.gov.uk/id/local-authority/29UP,Tonbridge & Malling Borough Council,2/21/2024,0011047778/1,11047778, 1340.00,G C Industrial Heating Services,00578100,292124905,BRREP Response - General,Tonbridge Swimming Pool,M15HBP50001997,110070753
http://statistics.data.gov.uk/id/local-authority/29UP,Tonbridge & Malling Borough Council,2/21/2024,0011047779/1,11047779, 420.00,G C Industrial Heating Services,00578100,292124905,BRREP Servicing - Heating Syst,Tonbridge Swimming Pool,M15HBP20001934,110070752
http://statistics.data.gov.uk/id/local-authority/29UP,Tonbridge & Malling Borough Council,2/21/2024,0011047780/1,11047780, 500.00,BML Building Services Ltd,01505000,124905523,BRREP Response - General,Tonbridge Swimming Pool,M15HBP50001997,110070754
http://statistics.data.gov.uk/id/local-authority/29UP,Tonbridge & Malling Borough Council,2/21/2024,0011047781/1,11047781, 960.00,Encore Envelopes Ltd,01750600,,External Printing,Electoral Registration,D31MF000043001,
http://statistics.data.gov.uk/id/local-authority/29UP,Tonbridge & Malling Borough Council,2/21/2024,0011047781/2,11047781, 4224.00,Encore Envelopes Ltd,01750600,,External Printing,Conduct of Elections,D31MG000043001,
http://statistics.data.gov.uk/id/local-authority/29UP,Tonbridge & Malling Borough Council,2/21/2024,0011047782/1,11047782, 737.16,Broadwater Technologies,01534500,,BRREP Plant renewals,Larkfield Leisure Centre,M15HDP20001909,110070699
http://statistics.data.gov.uk/id/local-authority/29UP,Tonbridge & Malling Borough Council,2/21/2024,0011047783/1,11047783, 1150.00,Broadwater Technologies,01534500,,BRREP Servicing - pool plant,Larkfield Leisure Centre,M15HDP20001910,110070358
http://statistics.data.gov.uk/id/local-authority/29UP,Tonbridge & Malling Borough Council,2/21/2024,0011047784/1,11047784, 252.00,Chillmech Limited,00978700,204985160,BRREP Servicing - air handling,Gibson Building East,M15KGP20001936,110070644
http://statistics.data.gov.uk/id/local-authority/29UP,Tonbridge & Malling Borough Council,2/21/2024,0011047785/1,11047785, 480.00,Baker Developments South East Ltd,01878900,446348183,BRREP Response - General,Tonbridge Swimming Pool,M15HBP50001997,110070731
http://statistics.data.gov.uk/id/local-authority/29UP,Tonbridge & Malling Borough Council,2/21/2024,0011047786/1,11047786, 615.00,ENWA Water Technology Ltd,01777800,765636985,BRREP Servicing - Heating Syst,Larkfield Leisure Centre,M15HDP20001934,110070647
http://statistics.data.gov.uk/id/local-authority/29UP,Tonbridge & Malling Borough Council,2/21/2024,0011047787/1,11047787, 1572.98,C. S. Mitchell LTD,01704800,,BRREP Servicing - ext lighting,Leis Man Poult Wood Golf Centr,M15HEP20001941,110070527
http://statistics.data.gov.uk/id/local-authority/29UP,Tonbridge & Malling Borough Council,2/21/2024,0011047788/1,11047788, 18675.00,Baker Developments South East Ltd,01878900,446348183,BRREP General Maintenance,Larkfield Leisure Centre,M15HDP10001900,110070673
http://statistics.data.gov.uk/id/local-authority/29UP,Tonbridge & Malling Borough Council,2/21/2024,0011047789/1,11047789, 202.00,Loxton Installations Ltd,01278800,204934869,BRREP Plant renewals,Larkfield Leisure Centre,M15HDP20001909,110070782
http://statistics.data.gov.uk/id/local-authority/29UP,Tonbridge & Malling Borough Council,2/21/2024,0011047790/1,11047790, 238.00,Loxton Installations Ltd,01278800,204934869,BRREP Serv Internal Lighting,Larkfield Leisure Centre,M15HDP20001957,110070781
http://statistics.data.gov.uk/id/local-authority/29UP,Tonbridge & Malling Borough Council,2/21/2024,0011047791/1,11047791, 458.00,Loxton Installations Ltd,01278800,204934869,BRREP Response - General,Leybourne Lakes Country Park,M15HLP50001997,110070774
http://statistics.data.gov.uk/id/local-authority/29UP,Tonbridge & Malling Borough Council,2/21/2024,0011047792/1,11047792, 624.00,Loxton Installations Ltd,01278800,204934869,BRREP Serv Internal Lighting,Tonbridge Castle / CAB,M15KFP20001957,110070773
http://statistics.data.gov.uk/id/local-authority/29UP,Tonbridge & Malling Borough Council,2/21/2024,0011047793/1,11047793, 475.00,Baker Developments South East Ltd,01878900,446348183,BRREP Response - General,Leis Man Poult Wood Golf Centr,M15HEP50001997,110070767
http://statistics.data.gov.uk/id/local-authority/29UP,Tonbridge & Malling Borough Council,2/21/2024,0011047794/1,11047794, 4082.68,KCS - KCC,00054200,204269191,Electricity,Buildings,D21FEDD6021002,
http://statistics.data.gov.uk/id/local-authority/29UP,Tonbridge & Malling Borough Council,2/21/2024,0011047795/1,11047795, 6458.41,KCS - KCC,00054200,204269191,Electricity,Buildings,D21FEDD1021002,
http://statistics.data.gov.uk/id/local-authority/29UP,Tonbridge & Malling Borough Council,2/21/2024,0011047796/1,11047796, 5840.06,KCS - KCC,00054200,204269191,Electricity,Buildings,D21FEDD5021002,
http://statistics.data.gov.uk/id/local-authority/29UP,Tonbridge & Malling Borough Council,2/21/2024,0011047798/1,11047798, 1500.00,Standing Together Against Domestic Abuse,01918000,,Community Safety Initiatives,Community Safety,D30MA000048134,110070517
http://statistics.data.gov.uk/id/local-authority/29UP,Tonbridge & Malling Borough Council,2/21/2024,0011047798/2,11047798, 2400.00,Standing Together Against Domestic Abuse,01918000,,Community Safety Initiatives,Community Safety,D30MA000048134,110070517
http://statistics.data.gov.uk/id/local-authority/29UP,Tonbridge & Malling Borough Council,2/21/2024,0012008783/1,12008783, 136.45,KCS - KCC,00054200,204269191,Copy Charges,Multi Function Devices,D22GB000040125,
http://statistics.data.gov.uk/id/local-authority/29UP,Tonbridge & Malling Borough Council,2/21/2024,0012008783/2,12008783, 218.53,KCS - KCC,00054200,204269191,Leasing Charges,Multi Function Devices,D22GB000044038,
http://statistics.data.gov.uk/id/local-authority/29UP,Tonbridge & Malling Borough Council,2/21/2024,0012008867/1,12008867, 19.75,KCS - KCC,00054200,204269191,Copy Charges,Multi Function Devices,D22GB000040125,
http://statistics.data.gov.uk/id/local-authority/29UP,Tonbridge & Malling Borough Council,2/21/2024,0012008981/1,12008981, 767.31,Softcat,01615300,,Initial Furniture & Equipment,Capital Renewals IT,P06FBFB2009906,410032537
http://statistics.data.gov.uk/id/local-authority/29UP,Tonbridge & Malling Borough Council,2/21/2024,0012008982/1,12008982, 1678.80,TeamViewer Germany GmbH,01784500,245838579,Software Hire & Support,Information Technology,D27KD000044059,410032553
http://statistics.data.gov.uk/id/local-authority/29UP,Tonbridge & Malling Borough Council,2/21/2024,0012008983/1,12008983, 570.00,CCS Media Ltd,00018000,,Purchases,Information Technology,D27KD000040101,410032589
http://statistics.data.gov.uk/id/local-authority/29UP,Tonbridge & Malling Borough Council,2/21/2024,0012008983/2,12008983, 5.20,CCS Media Ltd,00018000,,Delivery Expenses,Information Technology,D27KD000044069,410032589
http://statistics.data.gov.uk/id/local-authority/29UP,Tonbridge & Malling Borough Council,2/21/2024,0012008984/1,12008984, 1366.72,Bytes Software Services,01676900,823818226,Software Hire & Support,Information Technology,D27KD000044059,410032592
http://statistics.data.gov.uk/id/local-authority/29UP,Tonbridge & Malling Borough Council,2/21/2024,0012008984/2,12008984, 15236.02,Bytes Software Services,01676900,823818226,Software Hire & Support,Information Technology,D27KD000044059,410032592
http://statistics.data.gov.uk/id/local-authority/29UP,Tonbridge & Malling Borough Council,2/21/2024,0012008985/1,12008985, 1.94,KCS - KCC,00054200,204269191,Copy Charges,Multi Function Devices,D22GB000040125,
http://statistics.data.gov.uk/id/local-authority/29UP,Tonbridge & Malling Borough Council,2/21/2024,0012008985/2,12008985, 71.43,KCS - KCC,00054200,204269191,Leasing Charges,Multi Function Devices,D22GB000044038,
http://statistics.data.gov.uk/id/local-authority/29UP,Tonbridge & Malling Borough Council,2/21/2024,0012008986/1,12008986, 17.22,KCS - KCC,00054200,204269191,Copy Charges,Multi Function Devices,D22GB000040125,
http://statistics.data.gov.uk/id/local-authority/29UP,Tonbridge & Malling Borough Council,2/21/2024,0012008986/2,12008986, 76.10,KCS - KCC,00054200,204269191,Leasing Charges,Multi Function Devices,D22GB000044038,
http://statistics.data.gov.uk/id/local-authority/29UP,Tonbridge & Malling Borough Council,2/21/2024,0012008987/1,12008987, 15813.12,Phoenix Software Ltd,00077400,755349015,Software Hire & Support,Information Technology,D27KD000044059,
http://statistics.data.gov.uk/id/local-authority/29UP,Tonbridge & Malling Borough Council,2/21/2024,0012008988/1,12008988, 31.50,CCS Media Ltd,00018000,,Purchases,Information Technology,D27KD000040101,410032582
http://statistics.data.gov.uk/id/local-authority/29UP,Tonbridge & Malling Borough Council,2/21/2024,0012008988/2,12008988, 3.00,CCS Media Ltd,00018000,,Delivery Expenses,Information Technology,D27KD000044069,410032582
http://statistics.data.gov.uk/id/local-authority/29UP,Tonbridge & Malling Borough Council,2/21/2024,0012008989/1,12008989, 181.98,British Telecommunications Plc,00012800,,Telephones - Rentals,General Admin Telephones,D24GT000045005,
http://statistics.data.gov.uk/id/local-authority/29UP,Tonbridge & Malling Borough Council,2/21/2024,0012008990/1,12008990, 1289.20,O2 UK Ltd,01268000,,Mobile Telephones,Technical Sals&Overheads,D01AEDE0445013,
http://statistics.data.gov.uk/id/local-authority/29UP,Tonbridge & Malling Borough Council,2/21/2024,0012008991/1,12008991, 3.00,O2 UK Ltd,01268000,,Mobile Telephones,Technical Sals&Overheads,D01AEDE0445013,
http://statistics.data.gov.uk/id/local-authority/29UP,Tonbridge & Malling Borough Council,2/21/2024,0012008992/1,12008992, 85.30,O2 UK Ltd,01268000,,Mobile Telephones,Technical Sals&Overheads,D01AEDE0445013,
http://statistics.data.gov.uk/id/local-authority/29UP,Tonbridge & Malling Borough Council,2/21/2024,0012008993/1,12008993, 640.00,O2 UK Ltd,01268000,,Mobile Telephones,Technical Sals&Overheads,D01AEDE0445013,
http://statistics.data.gov.uk/id/local-authority/29UP,Tonbridge & Malling Borough Council,2/21/2024,0021039159/1,21039159, 530.00,SWS Countryside & Landscape,01567200,,Health & Safety - Trees,Countryside/Woodland Mgt,B22LG000044045,210057570
http://statistics.data.gov.uk/id/local-authority/29UP,Tonbridge & Malling Borough Council,2/21/2024,0021039160/1,21039160, 650.00,SWS Countryside & Landscape,01567200,,Health & Safety - Trees,Countryside/Woodland Mgt,B22LG000044045,210057571
http://statistics.data.gov.uk/id/local-authority/29UP,Tonbridge & Malling Borough Council,2/21/2024,0021039161/1,21039161, 89.35,B&Q/Screwfix Direct(TradeUKAccount),00141300,,Maintenance of Grounds,Haysden Country Park,B22LC000020402,
http://statistics.data.gov.uk/id/local-authority/29UP,Tonbridge & Malling Borough Council,2/21/2024,0021039161/2,21039161, 134.50,B&Q/Screwfix Direct(TradeUKAccount),00141300,,Maintenance of Grounds,Haysden Country Park,B22LC000020402,
http://statistics.data.gov.uk/id/local-authority/29UP,Tonbridge & Malling Borough Council,2/21/2024,0021039162/1,21039162, 290.20,KCC - L.A.S.E.R Commercial Services ,00184300,,Electricity,Open Spaces & Amenity Areas,B22LE000021002,
http://statistics.data.gov.uk/id/local-authority/29UP,Tonbridge & Malling Borough Council,2/21/2024,0021039163/1,21039163, 127.48,Barricade LTD,01509500,,Purchases,Haysden Country Park,B22LC000040101,
http://statistics.data.gov.uk/id/local-authority/29UP,Tonbridge & Malling Borough Council,2/21/2024,0021039164/1,21039164, 707.66,Atlas Facilities Managment Limited ,01075900,,Gates / Security,Patrolling,B22LF000044017,210057188
http://statistics.data.gov.uk/id/local-authority/29UP,Tonbridge & Malling Borough Council,2/21/2024,0022028305/1,22028305, 190.69,EDF- Accounts starting with A,01921000,,Electricity,Homelessness,C01AATNPR21002,
http://statistics.data.gov.uk/id/local-authority/29UP,Tonbridge & Malling Borough Council,2/21/2024,0022028514/1,22028514, 451.17,Urbaser LTD,01718800,,Maintenance of Grounds,Sports Grounds,B13ET000020402,
http://statistics.data.gov.uk/id/local-authority/29UP,Tonbridge & Malling Borough Council,2/21/2024,0022028514/10,22028514, 214.52,Urbaser LTD,01718800,,Maintenance of Grounds,Parking Off-Street,E10HA000020402,
http://statistics.data.gov.uk/id/local-authority/29UP,Tonbridge & Malling Borough Council,2/21/2024,0022028514/11,22028514, 5458.43,Urbaser LTD,01718800,,Maintenance of Grounds,Parking Off-Street,E10HAE00120402,
http://statistics.data.gov.uk/id/local-authority/29UP,Tonbridge & Malling Borough Council,2/21/2024,0022028514/12,22028514, 587.98,Urbaser LTD,01718800,,Maintenance of Grounds,Parking Off-Street,E10HAE00220402,
http://statistics.data.gov.uk/id/local-authority/29UP,Tonbridge & Malling Borough Council,2/21/2024,0022028514/13,22028514, 367.83,Urbaser LTD,01718800,,Maintenance of Grounds,Parking Off-Street,E10HAE00320402,
http://statistics.data.gov.uk/id/local-authority/29UP,Tonbridge & Malling Borough Council,2/21/2024,0022028514/14,22028514, 1923.76,Urbaser LTD,01718800,,Maintenance of Grounds,Parking Off-Street,E10HAE00420402,
http://statistics.data.gov.uk/id/local-authority/29UP,Tonbridge & Malling Borough Council,2/21/2024,0022028514/15,22028514, 319.68,Urbaser LTD,01718800,,Maintenance of Grounds,Parking Off-Street,E10HAE00520402,
http://statistics.data.gov.uk/id/local-authority/29UP,Tonbridge & Malling Borough Council,2/21/2024,0022028514/16,22028514, 1192.31,Urbaser LTD,01718800,,Maintenance of Grounds,Parking Off-Street,E10HAE00620402,
http://statistics.data.gov.uk/id/local-authority/29UP,Tonbridge & Malling Borough Council,2/21/2024,0022028514/17,22028514, 10.05,Urbaser LTD,01718800,,Maintenance of Grounds,Parking Off-Street,E10HAE00820402,
http://statistics.data.gov.uk/id/local-authority/29UP,Tonbridge & Malling Borough Council,2/21/2024,0022028514/18,22028514, 9.92,Urbaser LTD,01718800,,Maintenance of Grounds,Parking Off-Street,E10HAE00920402,
http://statistics.data.gov.uk/id/local-authority/29UP,Tonbridge & Malling Borough Council,2/21/2024,0022028514/19,22028514, 23.56,Urbaser LTD,01718800,,Maintenance of Grounds,Parking Off-Street,E10HAE01020402,
http://statistics.data.gov.uk/id/local-authority/29UP,Tonbridge & Malling Borough Council,2/21/2024,0022028514/2,22028514, 96.02,Urbaser LTD,01718800,,Maintenance of Grounds,Poult Wood Golf Centre,B21KE000020402,
http://statistics.data.gov.uk/id/local-authority/29UP,Tonbridge & Malling Borough Council,2/21/2024,0022028514/20,22028514, 111.95,Urbaser LTD,01718800,,Maintenance of Grounds,Parking Off-Street,E10HAE01120402,
http://statistics.data.gov.uk/id/local-authority/29UP,Tonbridge & Malling Borough Council,2/21/2024,0022028514/21,22028514, 70.44,Urbaser LTD,01718800,,Maintenance of Grounds,Parking Off-Street,E10HAE01220402,
http://statistics.data.gov.uk/id/local-authority/29UP,Tonbridge & Malling Borough Council,2/21/2024,0022028514/22,22028514, 1335.68,Urbaser LTD,01718800,,Maintenance of Grounds,Parking Off-Street,E10HAE01320402,
http://statistics.data.gov.uk/id/local-authority/29UP,Tonbridge & Malling Borough Council,2/21/2024,0022028514/23,22028514, 101.58,Urbaser LTD,01718800,,Maintenance of Grounds,Parking Off-Street,E10HAE01420402,
http://statistics.data.gov.uk/id/local-authority/29UP,Tonbridge & Malling Borough Council,2/21/2024,0022028514/24,22028514, 313.05,Urbaser LTD,01718800,,Maintenance of Grounds,Parking Off-Street,E10HAE01520402,
http://statistics.data.gov.uk/id/local-authority/29UP,Tonbridge & Malling Borough Council,2/21/2024,0022028514/25,22028514, 336.69,Urbaser LTD,01718800,,Maintenance of Grounds,Parking Off-Street,E10HAE01620402,
http://statistics.data.gov.uk/id/local-authority/29UP,Tonbridge & Malling Borough Council,2/21/2024,0022028514/26,22028514, 993.96,Urbaser LTD,01718800,,Maintenance of Grounds,Parking Off-Street,E10HAE01720402,
http://statistics.data.gov.uk/id/local-authority/29UP,Tonbridge & Malling Borough Council,2/21/2024,0022028514/27,22028514, 285.29,Urbaser LTD,01718800,,Maintenance of Grounds,Parking Off-Street,E10HAE01920402,
http://statistics.data.gov.uk/id/local-authority/29UP,Tonbridge & Malling Borough Council,2/21/2024,0022028514/28,22028514, 626.69,Urbaser LTD,01718800,,Maintenance of Grounds,Parking Off-Street,E10HAE02020402,
http://statistics.data.gov.uk/id/local-authority/29UP,Tonbridge & Malling Borough Council,2/21/2024,0022028514/29,22028514, 21.76,Urbaser LTD,01718800,,Maintenance of Grounds,Parking Off-Street,E10HAE02120402,
http://statistics.data.gov.uk/id/local-authority/29UP,Tonbridge & Malling Borough Council,2/21/2024,0022028514/3,22028514, 39.62,Urbaser LTD,01718800,,Maintenance of Grounds,Haysden Country Park,B22LC000020402,
http://statistics.data.gov.uk/id/local-authority/29UP,Tonbridge & Malling Borough Council,2/21/2024,0022028514/30,22028514, 143.26,Urbaser LTD,01718800,,Maintenance of Grounds,Parking Off-Street,E10HAE02220402,
http://statistics.data.gov.uk/id/local-authority/29UP,Tonbridge & Malling Borough Council,2/21/2024,0022028514/31,22028514, 1204.31,Urbaser LTD,01718800,,Maintenance of Grounds,Parking Off-Street,E10HAE02320402,
http://statistics.data.gov.uk/id/local-authority/29UP,Tonbridge & Malling Borough Council,2/21/2024,0022028514/32,22028514, 3.11,Urbaser LTD,01718800,,Maintenance of Grounds,Parking Off-Street,E10HAE02720402,
http://statistics.data.gov.uk/id/local-authority/29UP,Tonbridge & Malling Borough Council,2/21/2024,0022028514/33,22028514, 437.60,Urbaser LTD,01718800,,Maintenance of Grounds,Parking Off-Street,E10HAE02820402,
http://statistics.data.gov.uk/id/local-authority/29UP,Tonbridge & Malling Borough Council,2/21/2024,0022028514/34,22028514, 7.88,Urbaser LTD,01718800,,Maintenance of Grounds,Parking Off-Street,E10HAE02920402,
http://statistics.data.gov.uk/id/local-authority/29UP,Tonbridge & Malling Borough Council,2/21/2024,0022028514/35,22028514, 46.38,Urbaser LTD,01718800,,Maintenance of Grounds,Parking Off-Street,E10HAE03020402,
http://statistics.data.gov.uk/id/local-authority/29UP,Tonbridge & Malling Borough Council,2/21/2024,0022028514/36,22028514, 39.46,Urbaser LTD,01718800,,Maintenance of Grounds,Parking Off-Street,E10HAE03120402,
http://statistics.data.gov.uk/id/local-authority/29UP,Tonbridge & Malling Borough Council,2/21/2024,0022028514/37,22028514, 836.71,Urbaser LTD,01718800,,Maintenance of Grounds,Parking Off-Street,E10HAE04020402,
http://statistics.data.gov.uk/id/local-authority/29UP,Tonbridge & Malling Borough Council,2/21/2024,0022028514/38,22028514, 580.32,Urbaser LTD,01718800,,Maintenance of Grounds,Parking Off-Street,E10HAE04220402,
http://statistics.data.gov.uk/id/local-authority/29UP,Tonbridge & Malling Borough Council,2/21/2024,0022028514/39,22028514, 1665.68,Urbaser LTD,01718800,,Maintenance of Grounds,Parking Off-Street,E10HAE04520402,
http://statistics.data.gov.uk/id/local-authority/29UP,Tonbridge & Malling Borough Council,2/21/2024,0022028514/4,22028514, 30.43,Urbaser LTD,01718800,,Dog Bin Emptying,Haysden Country Park,B22LC000044012,
http://statistics.data.gov.uk/id/local-authority/29UP,Tonbridge & Malling Borough Council,2/21/2024,0022028514/40,22028514, 107939.06,Urbaser LTD,01718800,,Contract Payments,Refuse Collection,H20SA000054001,
http://statistics.data.gov.uk/id/local-authority/29UP,Tonbridge & Malling Borough Council,2/21/2024,0022028514/41,22028514, 1101.97,Urbaser LTD,01718800,,Responsible Dog Ownership,Street Scene,H23SD000044050,
http://statistics.data.gov.uk/id/local-authority/29UP,Tonbridge & Malling Borough Council,2/21/2024,0022028514/42,22028514, 65916.68,Urbaser LTD,01718800,,Contract Payments,Street Scene,H23SD000054001,
http://statistics.data.gov.uk/id/local-authority/29UP,Tonbridge & Malling Borough Council,2/21/2024,0022028514/43,22028514, 414.98,Urbaser LTD,01718800,,General Maintenance,Dry Recycling,H34SR000020301,
http://statistics.data.gov.uk/id/local-authority/29UP,Tonbridge & Malling Borough Council,2/21/2024,0022028514/44,22028514, 98065.11,Urbaser LTD,01718800,,Contract Payments,Dry Recycling,H34SR000054001,
http://statistics.data.gov.uk/id/local-authority/29UP,Tonbridge & Malling Borough Council,2/21/2024,0022028514/45,22028514, 38371.84,Urbaser LTD,01718800,,Contract Payments,Food Recycling,H34SS000054001,
http://statistics.data.gov.uk/id/local-authority/29UP,Tonbridge & Malling Borough Council,2/21/2024,0022028514/46,22028514, 20834.10,Urbaser LTD,01718800,,Contract Payments,Garden Waste Recycling,H34ST000054001,
http://statistics.data.gov.uk/id/local-authority/29UP,Tonbridge & Malling Borough Council,2/21/2024,0022028514/5,22028514, 862.61,Urbaser LTD,01718800,,Maintenance of Grounds,Open Spaces & Amenity Areas,B22LE000020402,
http://statistics.data.gov.uk/id/local-authority/29UP,Tonbridge & Malling Borough Council,2/21/2024,0022028514/6,22028514, 16.22,Urbaser LTD,01718800,,Dog Bin Emptying,Open Spaces & Amenity Areas,B22LE000044012,
http://statistics.data.gov.uk/id/local-authority/29UP,Tonbridge & Malling Borough Council,2/21/2024,0022028514/7,22028514, 28.00,Urbaser LTD,01718800,,Maintenance of Grounds,Countryside/Woodland Mgt,B22LG000020402,
http://statistics.data.gov.uk/id/local-authority/29UP,Tonbridge & Malling Borough Council,2/21/2024,0022028514/8,22028514, 30.43,Urbaser LTD,01718800,,Dog Bin Emptying,Leybourne Lakes Country Park,B22LK000044012,
http://statistics.data.gov.uk/id/local-authority/29UP,Tonbridge & Malling Borough Council,2/21/2024,0022028514/9,22028514, 70.14,Urbaser LTD,01718800,,Maintenance of Grounds,Grounds,D21FF000020402,
http://statistics.data.gov.uk/id/local-authority/29UP,Tonbridge & Malling Borough Council,2/21/2024,0022028515/1,22028515, 9991.04,Urbaser LTD,01718800,,Contract Payments,Refuse Collection,H20SA000054001,
http://statistics.data.gov.uk/id/local-authority/29UP,Tonbridge & Malling Borough Council,2/21/2024,0022028515/2,22028515, 17027.29,Urbaser LTD,01718800,,Contract Payments,Street Scene,H23SD000054001,
http://statistics.data.gov.uk/id/local-authority/29UP,Tonbridge & Malling Borough Council,2/21/2024,0022028515/3,22028515, 2149.35,Urbaser LTD,01718800,,Contract Payments,Dry Recycling,H34SR000054001,
http://statistics.data.gov.uk/id/local-authority/29UP,Tonbridge & Malling Borough Council,2/21/2024,0022028515/4,22028515, 15012.56,Urbaser LTD,01718800,,Contract Payments,Garden Waste Recycling,H34ST000054001,
http://statistics.data.gov.uk/id/local-authority/29UP,Tonbridge & Malling Borough Council,2/21/2024,0022028516/1,22028516, 15063.30,Urbaser LTD,01718800,,Contract Payments,Refuse Collection,H20SA000054001,
http://statistics.data.gov.uk/id/local-authority/29UP,Tonbridge & Malling Borough Council,2/21/2024,0022028516/2,22028516, 17132.78,Urbaser LTD,01718800,,Contract Payments,Street Scene,H23SD000054001,
http://statistics.data.gov.uk/id/local-authority/29UP,Tonbridge & Malling Borough Council,2/21/2024,0022028516/3,22028516, 1074.29,Urbaser LTD,01718800,,Contract Payments,Dry Recycling,H34SR000054001,
http://statistics.data.gov.uk/id/local-authority/29UP,Tonbridge & Malling Borough Council,2/21/2024,0022028516/5,22028516, 14991.03,Urbaser LTD,01718800,,Contract Payments,Garden Waste Recycling,H34ST000054001,
http://statistics.data.gov.uk/id/local-authority/29UP,Tonbridge & Malling Borough Council,2/21/2024,0022028517/1,22028517, 496.30,Lucy and Martin Recycling LTD,01694200,,Vehicle Licences,Dry Recycling,H34SR000030105,
http://statistics.data.gov.uk/id/local-authority/29UP,Tonbridge & Malling Borough Council,2/21/2024,0022028518/1,22028518, 1097.47,KCC - L.A.S.E.R Commercial Services ,00184300,,Electricity,Public Conveniences,H22SCH00421002,
http://statistics.data.gov.uk/id/local-authority/29UP,Tonbridge & Malling Borough Council,2/21/2024,0022028519/1,22028519, 68.54,British Telecommunications Plc,00012800,,Purchases,Homelessness,C01AATNPR40101,
http://statistics.data.gov.uk/id/local-authority/29UP,Tonbridge & Malling Borough Council,2/21/2024,0022028520/1,22028520, 42.18,Biffa Waste Services Ltd,01284500,,Commercial Waste Collection,Refuse Collection,H20SA000054025,
http://statistics.data.gov.uk/id/local-authority/29UP,Tonbridge & Malling Borough Council,2/21/2024,0022028521/1,22028521, 630.00,Wynsdale Waste Management Ltd,01772500,,Other Expenses,Housing Assistance,P03AD000009908,
http://statistics.data.gov.uk/id/local-authority/29UP,Tonbridge & Malling Borough Council,2/21/2024,0022028522/1,22028522, 2949.55,Town & Country Housing Group,01385400,,Other Expenses,Disabled Facilities Grant Mand,P03AC000009908,
http://statistics.data.gov.uk/id/local-authority/29UP,Tonbridge & Malling Borough Council,2/21/2024,0022028523/1,22028523, 5729.00,Ascendit Lifts Ltd,00446600,,Other Expenses,Disabled Facilities Grant Mand,P03AC000009908,
http://statistics.data.gov.uk/id/local-authority/29UP,Tonbridge & Malling Borough Council,2/21/2024,0022028524/1,22028524, 11307.42,Daytrad,01425400,,Other Expenses,Disabled Facilities Grant Mand,P03AC000009908,
http://statistics.data.gov.uk/id/local-authority/29UP,Tonbridge & Malling Borough Council,2/21/2024,0022028525/1,22028525, 1132.98,Town & Country Housing Group,01385400,,Other Expenses,Disabled Facilities Grant Mand,P03AC000009908,
http://statistics.data.gov.uk/id/local-authority/29UP,Tonbridge & Malling Borough Council,2/21/2024,0022028526/1,22028526, 6294.34,Adaptec Mobilty Ltd,01785800,339578354,Other Expenses,Disabled Facilities Grant Mand,P03AC000009908,
http://statistics.data.gov.uk/id/local-authority/29UP,Tonbridge & Malling Borough Council,2/21/2024,0022028527/1,22028527, 14850.00,Advanced Building & Maintenance Services,01887500,937054419,Other Expenses,Disabled Facilities Grant Mand,P03AC000009908,
http://statistics.data.gov.uk/id/local-authority/29UP,Tonbridge & Malling Borough Council,2/21/2024,0022028528/1,22028528, 441.00,REDACTED PERSONAL DATA,01934400,,Other Expenses,Disabled Facilities Grant Mand,P03AC000009908,
http://statistics.data.gov.uk/id/local-authority/29UP,Tonbridge & Malling Borough Council,2/21/2024,0022028529/1,22028529, 2896.70,Town & Country Housing Group,01385400,,Other Expenses,Disabled Facilities Grant Mand,P03AC000009908,
http://statistics.data.gov.uk/id/local-authority/29UP,Tonbridge & Malling Borough Council,2/21/2024,0031020036/1,31020036, 300.00,SJD Resilience,01922800,,Kent Resilience Forum,Civil Contingencies,D33NA000048032,
http://statistics.data.gov.uk/id/local-authority/29UP,Tonbridge & Malling Borough Council,2/21/2024,0031020038/1,31020038, 64.79,Shell U.K. Oil Products Limited,01673300,,"Petrol, Diesel & Oil",Patrolling,B22LF000030106,
http://statistics.data.gov.uk/id/local-authority/29UP,Tonbridge & Malling Borough Council,2/21/2024,0031020038/2,31020038, 78.58,Shell U.K. Oil Products Limited,01673300,,"Petrol, Diesel & Oil",Parking Off-Street,E10HA000030106,
http://statistics.data.gov.uk/id/local-authority/29UP,Tonbridge & Malling Borough Council,2/21/2024,0031020038/3,31020038, 78.58,Shell U.K. Oil Products Limited,01673300,,"Petrol, Diesel & Oil",Parking On-Street,E10HD000030106,
http://statistics.data.gov.uk/id/local-authority/29UP,Tonbridge & Malling Borough Council,2/21/2024,0031020045/1,31020045, 74.50,Royal British Legion Industries Ltd,00139700,,Premises Repairs & Maintenance,Parking Off-Street,E10HA000020601,310043245
http://statistics.data.gov.uk/id/local-authority/29UP,Tonbridge & Malling Borough Council,2/21/2024,0031020046/1,31020046, 716.83,PSR Lighting & Signs Ltd,01265400,986561173,Initiatives,UK Shared Prosperity Fund,D52TH000048135,310043235
http://statistics.data.gov.uk/id/local-authority/29UP,Tonbridge & Malling Borough Council,2/21/2024,0031020046/2,31020046, 834.75,PSR Lighting & Signs Ltd,01265400,986561173,Initiatives,UK Shared Prosperity Fund,D52TH000048135,310043235
http://statistics.data.gov.uk/id/local-authority/29UP,Tonbridge & Malling Borough Council,2/21/2024,0031020047/1,31020047, 1395.36,Peoplesafe -  Skyguard Ltd,01779900,,Health General,Technical Sals&Overheads,D01AEDE0144049,
http://statistics.data.gov.uk/id/local-authority/29UP,Tonbridge & Malling Borough Council,2/21/2024,0031020047/2,31020047, 333.96,Peoplesafe -  Skyguard Ltd,01779900,,Health General,Technical Sals&Overheads,D01AEDE0444049,
http://statistics.data.gov.uk/id/local-authority/29UP,Tonbridge & Malling Borough Council,2/21/2024,0031020047/3,31020047, 465.12,Peoplesafe -  Skyguard Ltd,01779900,,Health General,St Scene & Leis Sals&Overheads,D01AGDG2044049,
http://statistics.data.gov.uk/id/local-authority/29UP,Tonbridge & Malling Borough Council,2/21/2024,0031020048/1,31020048, 2070.00,Old School Consultancy,01745900,,Car Parking Action Plan,Parking On-Street,E10HD000020801,
http://statistics.data.gov.uk/id/local-authority/29UP,Tonbridge & Malling Borough Council,2/21/2024,0031020049/1,31020049, 71.29,Npower Ltd,01675800,,Initiatives,UK Shared Prosperity Fund,D52TH000048135,
http://statistics.data.gov.uk/id/local-authority/29UP,Tonbridge & Malling Borough Council,2/21/2024,0031020050/1,31020050, 138.02,Npower Ltd,01675800,,Electricity,Parking Off-Street,E10HA000021002,
http://statistics.data.gov.uk/id/local-authority/29UP,Tonbridge & Malling Borough Council,2/21/2024,0031020051/1,31020051, 326.56,Npower Ltd,01675800,,Electricity,Parking Off-Street,E10HA000021002,
http://statistics.data.gov.uk/id/local-authority/29UP,Tonbridge & Malling Borough Council,2/21/2024,0031020052/1,31020052, 645.20,G & G Signs,01178400,,Purchases,Boro Highways & Emergency Oper,E01AA000040101,310043215
http://statistics.data.gov.uk/id/local-authority/29UP,Tonbridge & Malling Borough Council,2/21/2024,0031020053/1,31020053, 4934.00,DSSL Group Ltd,01839500,,Initial Furniture & Equipment,Cap Ren CCTV,P01BA000009906,310043239
http://statistics.data.gov.uk/id/local-authority/29UP,Tonbridge & Malling Borough Council,2/21/2024,0031020054/1,31020054, 500.00,Traffic Enforcement Centre,00604200,,Adjudication & Enforcement Ser,Parking Off-Street,E10HA000044230,
http://statistics.data.gov.uk/id/local-authority/29UP,Tonbridge & Malling Borough Council,2/21/2024,0031020054/2,31020054, 500.00,Traffic Enforcement Centre,00604200,,Adjudication & Enforcement Ser,Parking On-Street,E10HD000044230,
http://statistics.data.gov.uk/id/local-authority/29UP,Tonbridge & Malling Borough Council,2/21/2024,0031020057/1,31020057, 195.48,British Telecommunications Plc,00012800,,CCTV Monitoring Station,Security Services Management,E09GA000051020,
http://statistics.data.gov.uk/id/local-authority/29UP,Tonbridge & Malling Borough Council,2/21/2024,0032010737/3,32010737, 2037.75,Vivid Resourcing,01773700,,Temporary Staff,Planning Sals&Overheads,D01AJDJ0111300,
http://statistics.data.gov.uk/id/local-authority/29UP,Tonbridge & Malling Borough Council,2/21/2024,0032010746/1,32010746, 1700.00,Hays Specialist Recruitment Limited,01879200,773695871,Temporary Staff,Planning Sals&Overheads,D01AJDJ0311300,
http://statistics.data.gov.uk/id/local-authority/29UP,Tonbridge & Malling Borough Council,2/21/2024,0032010747/1,32010747, 2144.00,Hays Specialist Recruitment Limited,01879200,773695871,Temporary Staff,Planning Sals&Overheads,D01AJDJ0111300,
http://statistics.data.gov.uk/id/local-authority/29UP,Tonbridge & Malling Borough Council,2/21/2024,0032010748/1,32010748, 2250.00,G2 Recruitment Solutions,01786000,,Temporary Staff,Planning Sals&Overheads,D01AJDJ0011300,
http://statistics.data.gov.uk/id/local-authority/29UP,Tonbridge & Malling Borough Council,2/21/2024,0032010749/1,32010749, 532.00,G2 Recruitment Solutions,01786000,,Temporary Staff,Planning Sals&Overheads,D01AJDJ0111300,
http://statistics.data.gov.uk/id/local-authority/29UP,Tonbridge & Malling Borough Council,2/21/2024,0032010750/1,32010750, 1267.88,Carrington West Limited,01844500,,Temporary Staff,Planning Sals&Overheads,D01AJDJ0111300,
http://statistics.data.gov.uk/id/local-authority/29UP,Tonbridge & Malling Borough Council,2/21/2024,0032010751/1,32010751, 957.38,Carrington West Limited,01844500,,Temporary Staff,Planning Sals&Overheads,D01AJDJ0111300,
http://statistics.data.gov.uk/id/local-authority/29UP,Tonbridge & Malling Borough Council,2/21/2024,0032010752/1,32010752, 8982.95,Wouldham Parish Council,00114700,,Payments,S106 - Commuted Sums,M04AD000001001,
http://statistics.data.gov.uk/id/local-authority/29UP,Tonbridge & Malling Borough Council,2/21/2024,0032010753/1,32010753, 1000.00,Aylesford Parish Council,00007300,,Payments,S106 - Commuted Sums,M04AD000001001,
http://statistics.data.gov.uk/id/local-authority/29UP,Tonbridge & Malling Borough Council,2/21/2024,0041036308/1,41036308, 48594.00,Kent County Council,00322500,204269191,Temporary Staff,Finance Sals&Overheads,D01AFDF0611300,
http://statistics.data.gov.uk/id/local-authority/29UP,Tonbridge & Malling Borough Council,2/21/2024,0041036309/1,41036309, 906.15,Rundle & Co Ltd,00087200,,Bailiffs Commission,Local Revenue & NNDR Collect,D41QA000044075,
http://statistics.data.gov.uk/id/local-authority/29UP,Tonbridge & Malling Borough Council,2/21/2024,0041036310/1,41036310, 980.45,Rundle & Co Ltd,00087200,,Bailiffs Commission,Local Revenue & NNDR Collect,D41QA000044075,
http://statistics.data.gov.uk/id/local-authority/29UP,Tonbridge & Malling Borough Council,2/21/2024,0051008909/7,51008909, 4500.00,Urban Design London,01933200,,Ext Fees/Prof & Tech,Training,D10DCDJ0013561,
http://statistics.data.gov.uk/id/local-authority/29UP,Tonbridge & Malling Borough Council,2/21/2024,0051008910/1,51008910, 290.00,Technical Training Solutions LLP,00920700,,Ext Fees/Prof & Tech,Training,D10DCDN0213561,510010662
http://statistics.data.gov.uk/id/local-authority/29UP,Tonbridge & Malling Borough Council,2/21/2024,0051008911/1,51008911, 40.00,Hertsmere Borough Council,01794800,,Ext Fees/Prof & Tech,Training,D10DCDV0113561,510010671
http://statistics.data.gov.uk/id/local-authority/29UP,Tonbridge & Malling Borough Council,2/21/2024,0051008912/1,51008912, 684.00,Starr Brothers Films Limited,01904600,,Recruitment Advertising,Recruitment Expenses,D10DADA1213110,510010641
http://statistics.data.gov.uk/id/local-authority/29UP,Tonbridge & Malling Borough Council,2/22/2024,0041036322/1,41036322, 2660.00,H.M. Revenue & Customs,00048400,,Levy Payment,Apprenticeship Scheme,D10DE000013700,
http://statistics.data.gov.uk/id/local-authority/29UP,Tonbridge & Malling Borough Council,2/22/2024,0041036323/1,41036323, 68.00,National Westminster Bank Plc,00069400,,Bank Charges,Banking Arrangements,D43QK000044222,
http://statistics.data.gov.uk/id/local-authority/29UP,Tonbridge & Malling Borough Council,2/23/2024,0041036328/1,41036328, 19.95,WorldPay Ltd,01402000,991280207,Credit Card Commission,Banking Arrangements,D43QK000044082,
http://statistics.data.gov.uk/id/local-authority/29UP,Tonbridge & Malling Borough Council,2/23/2024,0041036329/1,41036329, 2.31,WorldPay ,01568000,,Credit Card Commission,Banking Arrangements,D43QK000044082,
http://statistics.data.gov.uk/id/local-authority/29UP,Tonbridge & Malling Borough Council,2/23/2024,0041036330/1,41036330, 2675.73,WorldPay ,01568000,,Credit Card Commission,Banking Arrangements,D43QK000044082,
http://statistics.data.gov.uk/id/local-authority/29UP,Tonbridge & Malling Borough Council,2/23/2024,0041036330/2,41036330, 24.99,WorldPay ,01568000,,Credit Card Commission,Banking Arrangements,D43QK000044082,
http://statistics.data.gov.uk/id/local-authority/29UP,Tonbridge & Malling Borough Council,2/28/2024,0011047799/1,11047799, 3750.00,Bourne Valley Ltd,01934500,,Capital Grants (RECS),Rural England Prosperity Fund,P06F0F01047771,
http://statistics.data.gov.uk/id/local-authority/29UP,Tonbridge & Malling Borough Council,2/28/2024,0011047800/1,11047800, 15000.00,Oaks Specialist College,01895800,,Economic Development & Regen,Eco Dev & Reg Gen Bus Support,D52TD000047027,
http://statistics.data.gov.uk/id/local-authority/29UP,Tonbridge & Malling Borough Council,2/28/2024,0011047801/1,11047801, 2450.00,Tonbridge Youth Hub,01630300,,Initiatives,UK Shared Prosperity Fund,D52TH000048135,
http://statistics.data.gov.uk/id/local-authority/29UP,Tonbridge & Malling Borough Council,2/28/2024,0011047802/1,11047802, 270.00,DSSL Group Ltd,01839500,,Initiatives,UK Shared Prosperity Fund,D52TH000048135,110070750
http://statistics.data.gov.uk/id/local-authority/29UP,Tonbridge & Malling Borough Council,2/28/2024,0011047803/1,11047803, 1570.00,G C Industrial Heating Services,00578100,292124905,BRREP Servicing - boilers,Tonbridge Swimming Pool,M15HBP20001929,110070803
http://statistics.data.gov.uk/id/local-authority/29UP,Tonbridge & Malling Borough Council,2/28/2024,0011047804/1,11047804, 430.00,G C Industrial Heating Services,00578100,292124905,BRREP Servicing - boilers,Larkfield Leisure Centre,M15HDP20001929,110070760
http://statistics.data.gov.uk/id/local-authority/29UP,Tonbridge & Malling Borough Council,2/28/2024,0011047805/1,11047805, 1806.00,BML Building Services Ltd,01505000,124905523,BRREP Response - General,Gibson Building West,M15KBP50001997,110070697
http://statistics.data.gov.uk/id/local-authority/29UP,Tonbridge & Malling Borough Council,2/28/2024,0011047806/1,11047806, 135.00,Wessex Lift Co Ltd,00332600,190068957,BRREP Servicing - lifts,Tonbridge Castle / CAB,M15KFP20001930,110070799
http://statistics.data.gov.uk/id/local-authority/29UP,Tonbridge & Malling Borough Council,2/28/2024,0011047807/1,11047807, 170.00,Record UK Ltd,01116900,724106371,BRREP Servicing-entrance doors,Larkfield Leisure Centre,M15HDP20001927,110070798
http://statistics.data.gov.uk/id/local-authority/29UP,Tonbridge & Malling Borough Council,2/28/2024,0011047808/1,11047808, 175.00,BML Building Services Ltd,01505000,124905523,BRREP Response - General,Leis Man Poult Wood Golf Centr,M15HEP50001997,110070797
http://statistics.data.gov.uk/id/local-authority/29UP,Tonbridge & Malling Borough Council,2/28/2024,0011047809/1,11047809, 1035.00,System Hygienics Ltd,00600300,,BRREP Fire Damper Testing,Tonbridge Swimming Pool,M15HBP30001970,110070548
http://statistics.data.gov.uk/id/local-authority/29UP,Tonbridge & Malling Borough Council,2/28/2024,0011047810/1,11047810, 1200.00,Premier Paper Group,01421800,431168572,Purchases - Paper,Printing,D22GA000040102,
http://statistics.data.gov.uk/id/local-authority/29UP,Tonbridge & Malling Borough Council,2/28/2024,0011047811/1,11047811, 1600.00,The Oyster Partnership,01196400,832961025,Temporary Staff,Admin & Prop Sals&Overheads,D01AADA1111300,
http://statistics.data.gov.uk/id/local-authority/29UP,Tonbridge & Malling Borough Council,2/28/2024,0011047812/1,11047812, 1600.00,The Oyster Partnership,01196400,832961025,Temporary Staff,Admin & Prop Sals&Overheads,D01AADA1111300,
http://statistics.data.gov.uk/id/local-authority/29UP,Tonbridge & Malling Borough Council,2/28/2024,0011047813/1,11047813, 127.00,Kent County Council,01926400,,Initiatives,UK Shared Prosperity Fund,D52TH000048135,110070658
http://statistics.data.gov.uk/id/local-authority/29UP,Tonbridge & Malling Borough Council,2/28/2024,0011047814/1,11047814, 120.00,Baker Developments South East Ltd,01878900,446348183,BRREP Car Park mntce,Leis Man Poult Wood Golf Centr,M15HEP20001953,110070785
http://statistics.data.gov.uk/id/local-authority/29UP,Tonbridge & Malling Borough Council,2/28/2024,0011047815/1,11047815, 380.00,Baker Developments South East Ltd,01878900,446348183,BRREP Response - General,Grnd Mtce Poult Wood Golf Cent,M15HFP50001997,110070787
http://statistics.data.gov.uk/id/local-authority/29UP,Tonbridge & Malling Borough Council,2/28/2024,0011047816/1,11047816, 80.00,Baker Developments South East Ltd,01878900,446348183,BRREP Response - General,Leis Man Poult Wood Golf Centr,M15HEP50001997,110070786
http://statistics.data.gov.uk/id/local-authority/29UP,Tonbridge & Malling Borough Council,2/28/2024,0011047817/1,11047817, 180.00,Baker Developments South East Ltd,01878900,446348183,BRREP Response - General,Leis Man Poult Wood Golf Centr,M15HEP50001997,110070788
http://statistics.data.gov.uk/id/local-authority/29UP,Tonbridge & Malling Borough Council,2/28/2024,0011047818/1,11047818, 2318.75,Broadwater Technologies,01534500,,BRREP Plant renewals,Larkfield Leisure Centre,M15HDP20001909,110070705
http://statistics.data.gov.uk/id/local-authority/29UP,Tonbridge & Malling Borough Council,2/28/2024,0011047819/1,11047819, 670.25,Broadwater Technologies,01534500,,BRREP Plant renewals,Larkfield Leisure Centre,M15HDP20001909,110070790
http://statistics.data.gov.uk/id/local-authority/29UP,Tonbridge & Malling Borough Council,2/28/2024,0011047820/1,11047820, 112.00,East Sussex Fire Ltd,01843100,,Repairs & Mtce to Buildings,Homelessness,C01AATNHS20101,110070238
http://statistics.data.gov.uk/id/local-authority/29UP,Tonbridge & Malling Borough Council,2/28/2024,0011047821/1,11047821, 650.00,BML Building Services Ltd,01505000,124905523,BRREP Response - General,Shops & Maisonettes,M15NAP50001997,110070694
http://statistics.data.gov.uk/id/local-authority/29UP,Tonbridge & Malling Borough Council,2/28/2024,0011047822/1,11047822, 456.00,ATS Heritage,01847400,,Leasing Charges,Tonbridge Castle Gatehouse,B40TG000044038,110070251
http://statistics.data.gov.uk/id/local-authority/29UP,Tonbridge & Malling Borough Council,2/28/2024,0011047823/1,11047823, 1217.80,Sellick Partnership Group Limited,01336800,864288095,Temporary Staff,Legal Sals&Overheads,D01ARDR0011300,
http://statistics.data.gov.uk/id/local-authority/29UP,Tonbridge & Malling Borough Council,2/28/2024,0011047824/1,11047824, 1204.40,Sellick Partnership Group Limited,01336800,864288095,Temporary Staff,Legal Sals&Overheads,D01ARDR0011300,
http://statistics.data.gov.uk/id/local-authority/29UP,Tonbridge & Malling Borough Council,2/28/2024,0011047825/1,11047825, 1178.15,Ecosan Services Ltd,01061300,884525589,Miscellaneous Services,Cleaning & Security,D21FDDD6044015,110070800
http://statistics.data.gov.uk/id/local-authority/29UP,Tonbridge & Malling Borough Council,2/28/2024,0011047826/1,11047826, 1168.93,Ecosan Services Ltd,01061300,884525589,Miscellaneous Services,Cleaning & Security,D21FDDD5044015,110070800
http://statistics.data.gov.uk/id/local-authority/29UP,Tonbridge & Malling Borough Council,2/28/2024,0011047827/1,11047827, 779.29,Ecosan Services Ltd,01061300,884525589,Miscellaneous Services,Cleaning & Security,D21FDDD1044015,110070800
http://statistics.data.gov.uk/id/local-authority/29UP,Tonbridge & Malling Borough Council,2/28/2024,0011047828/1,11047828, 1089.00,Learnd UK,01226700,732938906,BRREP Servicing - pool plant,Larkfield Leisure Centre,M15HDP20001910,110070801
http://statistics.data.gov.uk/id/local-authority/29UP,Tonbridge & Malling Borough Council,2/28/2024,0012008994/1,12008994, 13.23,Amazon EU SARL,01738400,,Purchases,Information Technology,D27KD000040101,410032570
http://statistics.data.gov.uk/id/local-authority/29UP,Tonbridge & Malling Borough Council,2/28/2024,0012008994/2,12008994, 4.16,Amazon EU SARL,01738400,,Delivery Expenses,Information Technology,D27KD000044069,410032570
http://statistics.data.gov.uk/id/local-authority/29UP,Tonbridge & Malling Borough Council,2/28/2024,0012008995/1,12008995, 49211.87,NEC Software Solutions UK Ltd,01073900,202159745,Software Hire & Support,Information Technology,D27KD000044059,410032574
http://statistics.data.gov.uk/id/local-authority/29UP,Tonbridge & Malling Borough Council,2/28/2024,0012008996/1,12008996, 4545.86,NEC Software Solutions UK Ltd,01073900,202159745,Software Hire & Support,Information Technology,D27KD000044059,410032575
http://statistics.data.gov.uk/id/local-authority/29UP,Tonbridge & Malling Borough Council,2/28/2024,0012008997/1,12008997, 7629.60,NEC Software Solutions UK Ltd,01073900,202159745,Software Hire & Support,Information Technology,D27KD000044059,410032576
http://statistics.data.gov.uk/id/local-authority/29UP,Tonbridge & Malling Borough Council,2/28/2024,0012008998/1,12008998, 1926.27,NEC Software Solutions UK Ltd,01073900,202159745,Software Hire & Support,Information Technology,D27KD000044059,410032577
http://statistics.data.gov.uk/id/local-authority/29UP,Tonbridge & Malling Borough Council,2/28/2024,0012008999/1,12008999, 259.35,NEC Software Solutions UK Ltd,01073900,202159745,Software Hire & Support,Information Technology,D27KD000044059,410032581
http://statistics.data.gov.uk/id/local-authority/29UP,Tonbridge & Malling Borough Council,2/28/2024,0012009000/1,12009000, 250.00,Man and Machine Ltd,01857900,,Software Hire & Support,Information Technology,D27KD000044059,410032595
http://statistics.data.gov.uk/id/local-authority/29UP,Tonbridge & Malling Borough Council,2/28/2024,0012009001/1,12009001, 17.99,CCS Media Ltd,00018000,,Purchases,Information Technology,D27KD000040101,410032599
http://statistics.data.gov.uk/id/local-authority/29UP,Tonbridge & Malling Borough Council,2/28/2024,0012009001/2,12009001, 2.00,CCS Media Ltd,00018000,,Delivery Expenses,Information Technology,D27KD000044069,410032599
http://statistics.data.gov.uk/id/local-authority/29UP,Tonbridge & Malling Borough Council,2/28/2024,0012009002/1,12009002, 89.90,CCS Media Ltd,00018000,,Purchases,Information Technology,D27KD000040101,410032598
http://statistics.data.gov.uk/id/local-authority/29UP,Tonbridge & Malling Borough Council,2/28/2024,0012009002/2,12009002, 5.00,CCS Media Ltd,00018000,,Delivery Expenses,Information Technology,D27KD000044069,410032598
http://statistics.data.gov.uk/id/local-authority/29UP,Tonbridge & Malling Borough Council,2/28/2024,0012009003/1,12009003, 67857.70,Idox Software Ltd,00962400,,Software Hire & Support,Information Technology,D27KD000044059,410032590
http://statistics.data.gov.uk/id/local-authority/29UP,Tonbridge & Malling Borough Council,2/28/2024,0012009004/1,12009004, 816.28,NEC Software Solutions UK Ltd,01073900,202159745,Software Hire & Support,Information Technology,D27KD000044059,410032578
http://statistics.data.gov.uk/id/local-authority/29UP,Tonbridge & Malling Borough Council,2/28/2024,0012009005/1,12009005, 3.50,CCS Media Ltd,00018000,,Purchases,Information Technology,D27KD000040101,410032582
http://statistics.data.gov.uk/id/local-authority/29UP,Tonbridge & Malling Borough Council,2/28/2024,0012009006/1,12009006, 5000.00,Agile Applications Ltd,01850800,,Consultancy Fees,Information Technology,D27KD000044011,410032202
http://statistics.data.gov.uk/id/local-authority/29UP,Tonbridge & Malling Borough Council,2/28/2024,0012009007/1,12009007, 3960.00,Agile Applications Ltd,01850800,,Consultancy Fees,Information Technology,D27KD000044011,410032414
http://statistics.data.gov.uk/id/local-authority/29UP,Tonbridge & Malling Borough Council,2/28/2024,0021039165/1,21039165, 2905.00,Advantage Catering Equipment Ltd,01912700,131043471,Initial Furniture & Equipment,Capital Renewals Leisure,P05KGBC0409906,210057545
http://statistics.data.gov.uk/id/local-authority/29UP,Tonbridge & Malling Borough Council,2/28/2024,0021039170/1,21039170, 40.00,Weddle and Co,00714900,,Maintenance of Grounds,Open Spaces & Amenity Areas,B22LE000020402,210057556
http://statistics.data.gov.uk/id/local-authority/29UP,Tonbridge & Malling Borough Council,2/28/2024,0021039171/1,21039171, 70.78,Playdale Playgrounds Ltd,01195000,,Maintenance of Grounds,Leybourne Lakes Country Park,B22LK000020402,
http://statistics.data.gov.uk/id/local-authority/29UP,Tonbridge & Malling Borough Council,2/28/2024,0021039173/1,21039173, 860.00,Cameron Electrical,01849600,,Maintenance of Play Equipment,Open Spaces & Amenity Areas,B22LE000020503,210057527
http://statistics.data.gov.uk/id/local-authority/29UP,Tonbridge & Malling Borough Council,2/28/2024,0021039174/1,21039174, 4849.16,Safe Space Lockers,01933000,,Initial Furniture & Equipment,Capital Renewals Leisure,P05KGBC0209906,210057576
http://statistics.data.gov.uk/id/local-authority/29UP,Tonbridge & Malling Borough Council,2/28/2024,0021039175/1,21039175, 631.70,Glaze-Tech Services Ltd,00779500,,Initial Furniture & Equipment,Capital Renewals Leisure,P05KGBC0209906,210057557
http://statistics.data.gov.uk/id/local-authority/29UP,Tonbridge & Malling Borough Council,2/28/2024,0022028530/1,22028530, 7.25,REDACTED PERSONAL DATA,00887000,,Purchases,Env Hlth & Hsg Sals&Overheads,D01AVDV0040101,
http://statistics.data.gov.uk/id/local-authority/29UP,Tonbridge & Malling Borough Council,2/28/2024,0022028531/1,22028531, 769.40,Countrystyle Group,00835900,781981681,Collection of Card,Dry Recycling,H34SR000054008,
http://statistics.data.gov.uk/id/local-authority/29UP,Tonbridge & Malling Borough Council,2/28/2024,0022028532/1,22028532, 10063.88,B Coldwell Renovations Ltd,01923100,,Other Expenses,Disabled Facilities Grant Mand,P03AC000009908,
http://statistics.data.gov.uk/id/local-authority/29UP,Tonbridge & Malling Borough Council,2/28/2024,0022028533/1,22028533, 403.45,Town & Country Housing Group,01385400,,Other Expenses,Disabled Facilities Grant Mand,P03AC000009908,
http://statistics.data.gov.uk/id/local-authority/29UP,Tonbridge & Malling Borough Council,2/28/2024,0022028534/1,22028534, 2801.75,Webb-Flint Building & Maintenance Ltd,01913100,,Other Expenses,Disabled Facilities Grant Mand,P03AC000009908,
http://statistics.data.gov.uk/id/local-authority/29UP,Tonbridge & Malling Borough Council,2/28/2024,0022028535/1,22028535, 5271.75,Webb-Flint Building & Maintenance Ltd,01913100,,Other Expenses,Disabled Facilities Grant Mand,P03AC000009908,
http://statistics.data.gov.uk/id/local-authority/29UP,Tonbridge & Malling Borough Council,2/28/2024,0022028536/1,22028536, 100.00,REDACTED PERSONAL DATA,01910300,,Application & Appeals,Development Management,A01AB000044194,
http://statistics.data.gov.uk/id/local-authority/29UP,Tonbridge & Malling Borough Council,2/28/2024,0022028537/1,22028537, 490.00,Countrystyle Group,00835900,781981681,Collection of Card,Dry Recycling,H34SR000054008,
http://statistics.data.gov.uk/id/local-authority/29UP,Tonbridge & Malling Borough Council,2/28/2024,0022028538/1,22028538, 207.55,My Printed Clothing,01934600,,Healthy Living Initiatives,Public Health - Healthy Living,H40SYVH0048145,220003456
http://statistics.data.gov.uk/id/local-authority/29UP,Tonbridge & Malling Borough Council,2/28/2024,0022028539/1,22028539, 294.00,Wouldham Village Hall,01289100,,Healthy Living Initiatives,Public Health - Healthy Living,H40SYVH0048145,220003455
http://statistics.data.gov.uk/id/local-authority/29UP,Tonbridge & Malling Borough Council,2/28/2024,0022028540/1,22028540, 518.09,British Gas Services LTD,01260000,,Electricity,Homelessness,C01AAMAUN21002,
http://statistics.data.gov.uk/id/local-authority/29UP,Tonbridge & Malling Borough Council,2/28/2024,0022028541/1,22028541, 1350.00,The Radar Key Company,00542100,,Purchases,Street Scene,H23SD000040101,220003457
http://statistics.data.gov.uk/id/local-authority/29UP,Tonbridge & Malling Borough Council,2/28/2024,0031020055/1,31020055, 227.18,CDER Group,01773300,,Adjudication & Enforcement Ser,Parking Off-Street,E10HA000044230,
http://statistics.data.gov.uk/id/local-authority/29UP,Tonbridge & Malling Borough Council,2/28/2024,0031020058/3,31020058, 85.20,CDER Group,01773300,,Adjudication & Enforcement Ser,Parking Off-Street,E10HA000044230,
http://statistics.data.gov.uk/id/local-authority/29UP,Tonbridge & Malling Borough Council,2/28/2024,0031020059/1,31020059, 339.15,SKF Contractors Ltd,00092000,621768141,Premises Repairs & Maintenance,Parking On-Street,E10HD000020601,310043216
http://statistics.data.gov.uk/id/local-authority/29UP,Tonbridge & Malling Borough Council,2/28/2024,0031020060/1,31020060, 340.30,SKF Contractors Ltd,00092000,621768141,Repair & Mtce of Fixed Plant,Boro Highways & Emergency Oper,E01AA000020501,310043251
http://statistics.data.gov.uk/id/local-authority/29UP,Tonbridge & Malling Borough Council,2/28/2024,0031020065/1,31020065, 325.00,PSR Lighting & Signs Ltd,01265400,986561173,Maintenance - General,Security Services Management,E09GA000040135,310043252
http://statistics.data.gov.uk/id/local-authority/29UP,Tonbridge & Malling Borough Council,2/28/2024,0031020066/1,31020066, 1842.00,Kent Resilience Forum/KMTFA,01571100,,Kent Resilience Forum,Civil Contingencies,D33NA000048032,310043222
http://statistics.data.gov.uk/id/local-authority/29UP,Tonbridge & Malling Borough Council,2/28/2024,0031020067/1,31020067, 44.34,KelticLimited,01000400,,Uniforms,Parking Off-Street,E10HA000042002,310043247
http://statistics.data.gov.uk/id/local-authority/29UP,Tonbridge & Malling Borough Council,2/28/2024,0031020067/2,31020067, 4.17,KelticLimited,01000400,,Uniforms,Parking Off-Street,E10HA000042002,310043247
http://statistics.data.gov.uk/id/local-authority/29UP,Tonbridge & Malling Borough Council,2/28/2024,0031020067/3,31020067, 3.60,KelticLimited,01000400,,Uniforms,Parking Off-Street,E10HA000042002,310043247
http://statistics.data.gov.uk/id/local-authority/29UP,Tonbridge & Malling Borough Council,2/28/2024,0031020067/4,31020067, 2.78,KelticLimited,01000400,,Uniforms,Parking On-Street,E10HD000042002,310043247
http://statistics.data.gov.uk/id/local-authority/29UP,Tonbridge & Malling Borough Council,2/28/2024,0031020067/5,31020067, 29.56,KelticLimited,01000400,,Uniforms,Parking On-Street,E10HD000042002,310043247
http://statistics.data.gov.uk/id/local-authority/29UP,Tonbridge & Malling Borough Council,2/28/2024,0031020067/6,31020067, 2.40,KelticLimited,01000400,,Uniforms,Parking On-Street,E10HD000042002,310043247
http://statistics.data.gov.uk/id/local-authority/29UP,Tonbridge & Malling Borough Council,2/28/2024,0031020068/1,31020068, 42.47,Ark Trading/Goldstar,01607200,113179830,Uniforms,Parking Off-Street,E10HA000042002,310043246
http://statistics.data.gov.uk/id/local-authority/29UP,Tonbridge & Malling Borough Council,2/28/2024,0031020068/2,31020068, 28.31,Ark Trading/Goldstar,01607200,113179830,Uniforms,Parking On-Street,E10HD000042002,310043246
http://statistics.data.gov.uk/id/local-authority/29UP,Tonbridge & Malling Borough Council,2/28/2024,0031020069/1,31020069, 725.00,Archway Highway Services Ltd,01398000,,Maintenance of Grounds,Open Spaces & Amenity Areas,B22LE000020402,310043237
http://statistics.data.gov.uk/id/local-authority/29UP,Tonbridge & Malling Borough Council,2/28/2024,0032010755/1,32010755, 55.00,REDACTED PERSONAL DATA,01934700,,Professional Membership,Planning Sals&Overheads,D01AJDJ0247001,
http://statistics.data.gov.uk/id/local-authority/29UP,Tonbridge & Malling Borough Council,2/28/2024,0032010759/1,32010759, 235.62,KM Media Group Ltd,00053900,,Advertising General,Development Management,A01ABZ99944216,320003593
http://statistics.data.gov.uk/id/local-authority/29UP,Tonbridge & Malling Borough Council,2/28/2024,0032010760/1,32010760, 1700.00,Hays Specialist Recruitment Limited,01879200,773695871,Temporary Staff,Planning Sals&Overheads,D01AJDJ0311300,
http://statistics.data.gov.uk/id/local-authority/29UP,Tonbridge & Malling Borough Council,2/28/2024,0032010761/1,32010761, 2070.00,Hays Specialist Recruitment Limited,01879200,773695871,Temporary Staff,Planning Sals&Overheads,D01AJDJ0111300,
http://statistics.data.gov.uk/id/local-authority/29UP,Tonbridge & Malling Borough Council,2/28/2024,0041036315/1,41036315, 80.00,WorldPay Ltd,01402000,991280207,Credit Card Commission,Banking Arrangements,D43QK000044082,
http://statistics.data.gov.uk/id/local-authority/29UP,Tonbridge & Malling Borough Council,2/28/2024,0041036315/2,41036315, 78.56,WorldPay Ltd,01402000,991280207,Credit Card Commission,Banking Arrangements,D43QK000044082,
http://statistics.data.gov.uk/id/local-authority/29UP,Tonbridge & Malling Borough Council,2/28/2024,0041036315/3,41036315, 0.56,WorldPay Ltd,01402000,991280207,Credit Card Commission,Banking Arrangements,D43QK000044082,
http://statistics.data.gov.uk/id/local-authority/29UP,Tonbridge & Malling Borough Council,2/28/2024,0041036316/1,41036316, 80.00,WorldPay Ltd,01402000,991280207,Credit Card Commission,Banking Arrangements,D43QK000044082,
http://statistics.data.gov.uk/id/local-authority/29UP,Tonbridge & Malling Borough Council,2/28/2024,0041036316/2,41036316, 118.40,WorldPay Ltd,01402000,991280207,Credit Card Commission,Banking Arrangements,D43QK000044082,
http://statistics.data.gov.uk/id/local-authority/29UP,Tonbridge & Malling Borough Council,2/28/2024,0041036316/3,41036316, 0.64,WorldPay Ltd,01402000,991280207,Credit Card Commission,Banking Arrangements,D43QK000044082,
http://statistics.data.gov.uk/id/local-authority/29UP,Tonbridge & Malling Borough Council,2/28/2024,0041036317/1,41036317, 80.00,WorldPay Ltd,01402000,991280207,Credit Card Commission,Banking Arrangements,D43QK000044082,
http://statistics.data.gov.uk/id/local-authority/29UP,Tonbridge & Malling Borough Council,2/28/2024,0041036317/2,41036317, 176.80,WorldPay Ltd,01402000,991280207,Credit Card Commission,Banking Arrangements,D43QK000044082,
http://statistics.data.gov.uk/id/local-authority/29UP,Tonbridge & Malling Borough Council,2/28/2024,0041036317/3,41036317, 0.16,WorldPay Ltd,01402000,991280207,Credit Card Commission,Banking Arrangements,D43QK000044082,
http://statistics.data.gov.uk/id/local-authority/29UP,Tonbridge & Malling Borough Council,2/28/2024,0041036318/3,41036318, 3297.88,Maidstone Borough Council,01173700,,Bailiffs Commission,Local Revenue & NNDR Collect,D41QA000044075,
http://statistics.data.gov.uk/id/local-authority/29UP,Tonbridge & Malling Borough Council,2/28/2024,0041036319/3,41036319, 75.00,Maidstone Borough Council,01173700,,Bailiffs Commission,Local Revenue & NNDR Collect,D41QA000044075,
http://statistics.data.gov.uk/id/local-authority/29UP,Tonbridge & Malling Borough Council,2/28/2024,0041036320/3,41036320, 985.51,Rundle & Co Ltd,00087200,,Bailiffs Commission,Local Revenue & NNDR Collect,D41QA000044075,
http://statistics.data.gov.uk/id/local-authority/29UP,Tonbridge & Malling Borough Council,2/28/2024,0041036321/1,41036321, 15350.00,Grant Thornton UK LLP,01407400,,Audit Fees,Public Accountability,D29LR000044223,410032259
http://statistics.data.gov.uk/id/local-authority/29UP,Tonbridge & Malling Borough Council,2/28/2024,0041036333/1,41036333, 495.00,CIPFA Business Limited,01216800,,Reference Books & Publications,Finance Sals&Overheads,D01AFDF0243010,410032601
http://statistics.data.gov.uk/id/local-authority/29UP,Tonbridge & Malling Borough Council,2/28/2024,0041036333/2,41036333, 495.00,CIPFA Business Limited,01216800,,Reference Books & Publications,Finance Sals&Overheads,D01AFDF0243010,410032601
http://statistics.data.gov.uk/id/local-authority/29UP,Tonbridge & Malling Borough Council,2/28/2024,0041036335/1,41036335, 7729.20,G2 Recruitment Solutions,01786000,,Recruitment Advertising,Recruitment Expenses,D10DADF0213110,510010676
http://statistics.data.gov.uk/id/local-authority/29UP,Tonbridge & Malling Borough Council,2/28/2024,0051008914/1,51008914, 399.00,Hiring People (Ptnrs of Research Ltd),01876600,161643812,Advertising General,Licences - Fee Paying,H27SHZ99944216,510010683
http://statistics.data.gov.uk/id/local-authority/29UP,Tonbridge & Malling Borough Council,2/28/2024,0051008915/3,51008915, 33.60,Centre for Governance and Scrutiny,01866900,,Ext Fees/General,Training,D10DCDM0013567,
http://statistics.data.gov.uk/id/local-authority/29UP,Tonbridge & Malling Borough Council,2/28/2024,0051008915/4,51008915, 1200.00,Centre for Governance and Scrutiny,01866900,,Ext Fees/General,Training,D10DCDM0013567,
